{"text_format":"3","workbook":"xlsx","n_sheets":3,"sheets":["Dados do Mapa de Objetivos","Mapa de Objetivos Ágil","Informações"],"not_rendered":{"defined_names":5},"read":"whole","date_system":"1900"}

{"sheet":"Dados do Mapa de Objetivos","index":0,"n_rows":13,"n_cols":7,"rows_kept":13,"merged":[[12,1,12,4]]}
["Crie um Mapa de Objetivos Ágil ao introduzir marcos ou atividades importantes na tabela Dados do Mapa de Objetivos nesta folha de cálculo.\nO título desta folha de cálculo está na célula B1. \nAs informações sobre como utilizar esta folha de cálculo, incluindo instruções para leitores de ecrã, estão na folha de cálculo Informações.\nContinue a navegar para baixo pela coluna A para obter mais instruções.","Dados da Linha Cronológica Ágil"]
["Os cabeçalhos da tabela estão nas células B2 a E2. Utilize filtros de cabeçalho para ordenar a tabela e localizar itens específicos.\nO Mapa de Objetivos Ágil funciona melhor quando a tabela está ordenada pela ordem Ascendente por Prioridade, seguido do Marco ou Atividade.\nOs dados de exemplo estão na tabela Dados do Mapa de Objetivos das células B3 a E12. \nQuando um marco ou atividade for concluído, atualize o campo Resultado correspondente para mostrar os resultados na folha de cálculo Mapa de Objetivos Ágil. Introduza \"Sem Alterações\" para destacar os marcos com nenhum impacto.\nAvance para a célula A13 para obter a instrução seguinte.\n","Meta","Marco ou Atividade","Prioridade","Resultado",null,"<-- ordene a tabela por Prioridade e Marco ou Atividade, pela ordem ascendente"]
[null,"Atual","Atividade 1\nCriar protótipo","1 – Alta",null,null,"<-- adicione um resultado para cada Marco concluído. Introduza \"Sem Alterações\" para destacar os marcos com nenhum impacto."]
[null,"Curto Prazo","Atividade 2\nDemonstração do protótipo","1 – Alta"]
[null,"Atual","Atividade 6","1 – Alta"]
[null,"Futuro","Atividade 7\nOutsourcing do Desenvolvimento da 1.ª fase da implementação","1 – Alta"]
[null,"Concluído","Atividade 9\n1.ª fase aprovada","1 – Alta","Diminuição em 10%"]
[null,"Futuro","Atividade 10","2 – Média"]
[null,"Curto Prazo","Atividade 8","2 – Média"]
[null,"Concluído","Atividade 3","3 – Baixa","Sem Alterações"]
[null,"Futuro","Atividade 4","3 – Baixa"]
[null,"Atual","Atividade 5","3 – Baixa"]
["Adicione novos itens ao inserir novas linhas na tabela acima desta linha.\nEsta é a última instrução nesta folha de cálculo.","Adicione novos itens ao inserir novas linhas acima desta linha"]

{"sheet":"Mapa de Objetivos Ágil","index":1,"n_rows":100,"n_cols":8,"rows_kept":100}
["Um Mapa de Objetivos Ágil que apresenta os marcos e atividades da folha de cálculo Dados do Mapa de Objetivos está nesta folha de cálculo. \nO título está na célula B1. \nOs resultados com a expressão \"Sem Alterações\" estão realçados a cor de laranja claro, rgb(255, 230, 210).\nOs marcos ou atividades concluídos estão realçados a verde-claro, rgb(237,251,219).","Mapa de Objetivos Ágil"]
["Os cabeçalhos do gráfico estão nas células B2, D2, F2 e H2. Estes indicam: Concluído, Atual, Curto Prazo e Futuro. Modifique estes cabeçalhos para alterar os valores de seleção do campo Meta na tabela Dados do Mapa de Objetivos na folha de cálculo Dados do Mapa de Objetivos.\nAs células B3 a H20 contêm os Marcos e Atividades dos cabeçalhos nesta linha. \nOs Marcos e Atividades são criados na folha de cálculo Dados do Mapa de Objetivos.\nNÃO modifique ou elimine entradas nesta folha de cálculo. Atualize a tabela Dados do Mapa de Objetivos na folha de cálculo Dados do Mapa de Objetivos para atualizar os conteúdos nesta folha de cálculo.\nEsta é a última instrução nesta folha de cálculo.","Concluído",null,"Atual",null,"Curto Prazo",null,"Futuro"]
[null,{"$f":"IFERROR(INDEX(Atividade,SMALL(IF(Meta=$B$2,ROW(Atividade)-MIN(ROW(Atividade))+1),ROWS($B$3:B3)))&\" \"&CHAR(10)&(INDEX(Resultado,SMALL(IF(Meta=$B$2,ROW(Resultado)-MIN(ROW(Resultado))+1),ROWS($B$3:B3))))&CHAR(10),\"\")","v":"Atividade 9\n1.ª fase aprovada \nDiminuição em 10%\n"},null,{"$f":"IFERROR(INDEX(Atividade,SMALL(IF(Meta=$D$2,ROW(Atividade)-MIN(ROW(Atividade))+1),ROWS($B$3:B3)))&CHAR(10),\"\")","v":"Atividade 1\nCriar protótipo\n"},null,{"$f":"IFERROR(INDEX(Atividade,SMALL(IF(Meta=$F$2,ROW(Atividade)-MIN(ROW(Atividade))+1),ROWS($B$3:B3)))&CHAR(10),\"\")","v":"Atividade 2\nDemonstração do protótipo\n"},null,{"$f":"IFERROR(INDEX(Atividade,SMALL(IF(Meta=$H$2,ROW(Atividade)-MIN(ROW(Atividade))+1),ROWS($B$3:B3)))&CHAR(10),\"\")","v":"Atividade 7\nOutsourcing do Desenvolvimento da 1.ª fase da implementação\n"}]
[null,{"$f":"IFERROR(INDEX(Atividade,SMALL(IF(Meta=$B$2,ROW(Atividade)-MIN(ROW(Atividade))+1),ROWS($B$3:B4)))&\" \"&CHAR(10)&(INDEX(Resultado,SMALL(IF(Meta=$B$2,ROW(Resultado)-MIN(ROW(Resultado))+1),ROWS($B$3:B4))))&CHAR(10),\"\")","v":"Atividade 3 \nSem Alterações\n"},null,{"$f":"IFERROR(INDEX(Atividade,SMALL(IF(Meta=$D$2,ROW(Atividade)-MIN(ROW(Atividade))+1),ROWS($B$3:B4)))&CHAR(10),\"\")","v":"Atividade 6\n"},null,{"$f":"IFERROR(INDEX(Atividade,SMALL(IF(Meta=$F$2,ROW(Atividade)-MIN(ROW(Atividade))+1),ROWS($B$3:B4)))&CHAR(10),\"\")","v":"Atividade 8\n"},null,{"$f":"IFERROR(INDEX(Atividade,SMALL(IF(Meta=$H$2,ROW(Atividade)-MIN(ROW(Atividade))+1),ROWS($B$3:B4)))&CHAR(10),\"\")","v":"Atividade 10\n"}]
[null,{"$f":"IFERROR(INDEX(Atividade,SMALL(IF(Meta=$B$2,ROW(Atividade)-MIN(ROW(Atividade))+1),ROWS($B$3:B5)))&\" \"&CHAR(10)&(INDEX(Resultado,SMALL(IF(Meta=$B$2,ROW(Resultado)-MIN(ROW(Resultado))+1),ROWS($B$3:B5))))&CHAR(10),\"\")","v":""},null,{"$f":"IFERROR(INDEX(Atividade,SMALL(IF(Meta=$D$2,ROW(Atividade)-MIN(ROW(Atividade))+1),ROWS($B$3:B5)))&CHAR(10),\"\")","v":"Atividade 5\n"},null,{"$f":"IFERROR(INDEX(Atividade,SMALL(IF(Meta=$F$2,ROW(Atividade)-MIN(ROW(Atividade))+1),ROWS($B$3:B5)))&CHAR(10),\"\")","v":""},null,{"$f":"IFERROR(INDEX(Atividade,SMALL(IF(Meta=$H$2,ROW(Atividade)-MIN(ROW(Atividade))+1),ROWS($B$3:B5)))&CHAR(10),\"\")","v":"Atividade 4\n"}]
[null,{"$f":"IFERROR(INDEX(Atividade,SMALL(IF(Meta=$B$2,ROW(Atividade)-MIN(ROW(Atividade))+1),ROWS($B$3:B6)))&\" \"&CHAR(10)&(INDEX(Resultado,SMALL(IF(Meta=$B$2,ROW(Resultado)-MIN(ROW(Resultado))+1),ROWS($B$3:B6))))&CHAR(10),\"\")","v":""},null,{"$f":"IFERROR(INDEX(Atividade,SMALL(IF(Meta=$D$2,ROW(Atividade)-MIN(ROW(Atividade))+1),ROWS($B$3:B6)))&CHAR(10),\"\")","v":""},null,{"$f":"IFERROR(INDEX(Atividade,SMALL(IF(Meta=$F$2,ROW(Atividade)-MIN(ROW(Atividade))+1),ROWS($B$3:B6)))&CHAR(10),\"\")","v":""},null,{"$f":"IFERROR(INDEX(Atividade,SMALL(IF(Meta=$H$2,ROW(Atividade)-MIN(ROW(Atividade))+1),ROWS($B$3:B6)))&CHAR(10),\"\")","v":""}]
[null,{"$f":"IFERROR(INDEX(Atividade,SMALL(IF(Meta=$B$2,ROW(Atividade)-MIN(ROW(Atividade))+1),ROWS($B$3:B7)))&\" \"&CHAR(10)&(INDEX(Resultado,SMALL(IF(Meta=$B$2,ROW(Resultado)-MIN(ROW(Resultado))+1),ROWS($B$3:B7))))&CHAR(10),\"\")","v":""},null,{"$f":"IFERROR(INDEX(Atividade,SMALL(IF(Meta=$D$2,ROW(Atividade)-MIN(ROW(Atividade))+1),ROWS($B$3:B7)))&CHAR(10),\"\")","v":""},null,{"$f":"IFERROR(INDEX(Atividade,SMALL(IF(Meta=$F$2,ROW(Atividade)-MIN(ROW(Atividade))+1),ROWS($B$3:B7)))&CHAR(10),\"\")","v":""},null,{"$f":"IFERROR(INDEX(Atividade,SMALL(IF(Meta=$H$2,ROW(Atividade)-MIN(ROW(Atividade))+1),ROWS($B$3:B7)))&CHAR(10),\"\")","v":""}]
[null,{"$f":"IFERROR(INDEX(Atividade,SMALL(IF(Meta=$B$2,ROW(Atividade)-MIN(ROW(Atividade))+1),ROWS($B$3:B8)))&\" \"&CHAR(10)&(INDEX(Resultado,SMALL(IF(Meta=$B$2,ROW(Resultado)-MIN(ROW(Resultado))+1),ROWS($B$3:B8))))&CHAR(10),\"\")","v":""},null,{"$f":"IFERROR(INDEX(Atividade,SMALL(IF(Meta=$D$2,ROW(Atividade)-MIN(ROW(Atividade))+1),ROWS($B$3:B8)))&CHAR(10),\"\")","v":""},null,{"$f":"IFERROR(INDEX(Atividade,SMALL(IF(Meta=$F$2,ROW(Atividade)-MIN(ROW(Atividade))+1),ROWS($B$3:B8)))&CHAR(10),\"\")","v":""},null,{"$f":"IFERROR(INDEX(Atividade,SMALL(IF(Meta=$H$2,ROW(Atividade)-MIN(ROW(Atividade))+1),ROWS($B$3:B8)))&CHAR(10),\"\")","v":""}]
[null,{"$f":"IFERROR(INDEX(Atividade,SMALL(IF(Meta=$B$2,ROW(Atividade)-MIN(ROW(Atividade))+1),ROWS($B$3:B9)))&\" \"&CHAR(10)&(INDEX(Resultado,SMALL(IF(Meta=$B$2,ROW(Resultado)-MIN(ROW(Resultado))+1),ROWS($B$3:B9))))&CHAR(10),\"\")","v":""},null,{"$f":"IFERROR(INDEX(Atividade,SMALL(IF(Meta=$D$2,ROW(Atividade)-MIN(ROW(Atividade))+1),ROWS($B$3:B9)))&CHAR(10),\"\")","v":""},null,{"$f":"IFERROR(INDEX(Atividade,SMALL(IF(Meta=$F$2,ROW(Atividade)-MIN(ROW(Atividade))+1),ROWS($B$3:B9)))&CHAR(10),\"\")","v":""},null,{"$f":"IFERROR(INDEX(Atividade,SMALL(IF(Meta=$H$2,ROW(Atividade)-MIN(ROW(Atividade))+1),ROWS($B$3:B9)))&CHAR(10),\"\")","v":""}]
[null,{"$f":"IFERROR(INDEX(Atividade,SMALL(IF(Meta=$B$2,ROW(Atividade)-MIN(ROW(Atividade))+1),ROWS($B$3:B10)))&\" \"&CHAR(10)&(INDEX(Resultado,SMALL(IF(Meta=$B$2,ROW(Resultado)-MIN(ROW(Resultado))+1),ROWS($B$3:B10))))&CHAR(10),\"\")","v":""},null,{"$f":"IFERROR(INDEX(Atividade,SMALL(IF(Meta=$D$2,ROW(Atividade)-MIN(ROW(Atividade))+1),ROWS($B$3:B10)))&CHAR(10),\"\")","v":""},null,{"$f":"IFERROR(INDEX(Atividade,SMALL(IF(Meta=$F$2,ROW(Atividade)-MIN(ROW(Atividade))+1),ROWS($B$3:B10)))&CHAR(10),\"\")","v":""},null,{"$f":"IFERROR(INDEX(Atividade,SMALL(IF(Meta=$H$2,ROW(Atividade)-MIN(ROW(Atividade))+1),ROWS($B$3:B10)))&CHAR(10),\"\")","v":""}]
[null,{"$f":"IFERROR(INDEX(Atividade,SMALL(IF(Meta=$B$2,ROW(Atividade)-MIN(ROW(Atividade))+1),ROWS($B$3:B11)))&\" \"&CHAR(10)&(INDEX(Resultado,SMALL(IF(Meta=$B$2,ROW(Resultado)-MIN(ROW(Resultado))+1),ROWS($B$3:B11))))&CHAR(10),\"\")","v":""},null,{"$f":"IFERROR(INDEX(Atividade,SMALL(IF(Meta=$D$2,ROW(Atividade)-MIN(ROW(Atividade))+1),ROWS($B$3:B11)))&CHAR(10),\"\")","v":""},null,{"$f":"IFERROR(INDEX(Atividade,SMALL(IF(Meta=$F$2,ROW(Atividade)-MIN(ROW(Atividade))+1),ROWS($B$3:B11)))&CHAR(10),\"\")","v":""},null,{"$f":"IFERROR(INDEX(Atividade,SMALL(IF(Meta=$H$2,ROW(Atividade)-MIN(ROW(Atividade))+1),ROWS($B$3:B11)))&CHAR(10),\"\")","v":""}]
[null,{"$f":"IFERROR(INDEX(Atividade,SMALL(IF(Meta=$B$2,ROW(Atividade)-MIN(ROW(Atividade))+1),ROWS($B$3:B12)))&\" \"&CHAR(10)&(INDEX(Resultado,SMALL(IF(Meta=$B$2,ROW(Resultado)-MIN(ROW(Resultado))+1),ROWS($B$3:B12))))&CHAR(10),\"\")","v":""},null,{"$f":"IFERROR(INDEX(Atividade,SMALL(IF(Meta=$D$2,ROW(Atividade)-MIN(ROW(Atividade))+1),ROWS($B$3:B12)))&CHAR(10),\"\")","v":""},null,{"$f":"IFERROR(INDEX(Atividade,SMALL(IF(Meta=$F$2,ROW(Atividade)-MIN(ROW(Atividade))+1),ROWS($B$3:B12)))&CHAR(10),\"\")","v":""},null,{"$f":"IFERROR(INDEX(Atividade,SMALL(IF(Meta=$H$2,ROW(Atividade)-MIN(ROW(Atividade))+1),ROWS($B$3:B12)))&CHAR(10),\"\")","v":""}]
[null,{"$f":"IFERROR(INDEX(Atividade,SMALL(IF(Meta=$B$2,ROW(Atividade)-MIN(ROW(Atividade))+1),ROWS($B$3:B13)))&\" \"&CHAR(10)&(INDEX(Resultado,SMALL(IF(Meta=$B$2,ROW(Resultado)-MIN(ROW(Resultado))+1),ROWS($B$3:B13))))&CHAR(10),\"\")","v":""},null,{"$f":"IFERROR(INDEX(Atividade,SMALL(IF(Meta=$D$2,ROW(Atividade)-MIN(ROW(Atividade))+1),ROWS($B$3:B13)))&CHAR(10),\"\")","v":""},null,{"$f":"IFERROR(INDEX(Atividade,SMALL(IF(Meta=$F$2,ROW(Atividade)-MIN(ROW(Atividade))+1),ROWS($B$3:B13)))&CHAR(10),\"\")","v":""},null,{"$f":"IFERROR(INDEX(Atividade,SMALL(IF(Meta=$H$2,ROW(Atividade)-MIN(ROW(Atividade))+1),ROWS($B$3:B13)))&CHAR(10),\"\")","v":""}]
[null,{"$f":"IFERROR(INDEX(Atividade,SMALL(IF(Meta=$B$2,ROW(Atividade)-MIN(ROW(Atividade))+1),ROWS($B$3:B14)))&\" \"&CHAR(10)&(INDEX(Resultado,SMALL(IF(Meta=$B$2,ROW(Resultado)-MIN(ROW(Resultado))+1),ROWS($B$3:B14))))&CHAR(10),\"\")","v":""},null,{"$f":"IFERROR(INDEX(Atividade,SMALL(IF(Meta=$D$2,ROW(Atividade)-MIN(ROW(Atividade))+1),ROWS($B$3:B14)))&CHAR(10),\"\")","v":""},null,{"$f":"IFERROR(INDEX(Atividade,SMALL(IF(Meta=$F$2,ROW(Atividade)-MIN(ROW(Atividade))+1),ROWS($B$3:B14)))&CHAR(10),\"\")","v":""},null,{"$f":"IFERROR(INDEX(Atividade,SMALL(IF(Meta=$H$2,ROW(Atividade)-MIN(ROW(Atividade))+1),ROWS($B$3:B14)))&CHAR(10),\"\")","v":""}]
[null,{"$f":"IFERROR(INDEX(Atividade,SMALL(IF(Meta=$B$2,ROW(Atividade)-MIN(ROW(Atividade))+1),ROWS($B$3:B15)))&\" \"&CHAR(10)&(INDEX(Resultado,SMALL(IF(Meta=$B$2,ROW(Resultado)-MIN(ROW(Resultado))+1),ROWS($B$3:B15))))&CHAR(10),\"\")","v":""},null,{"$f":"IFERROR(INDEX(Atividade,SMALL(IF(Meta=$D$2,ROW(Atividade)-MIN(ROW(Atividade))+1),ROWS($B$3:B15)))&CHAR(10),\"\")","v":""},null,{"$f":"IFERROR(INDEX(Atividade,SMALL(IF(Meta=$F$2,ROW(Atividade)-MIN(ROW(Atividade))+1),ROWS($B$3:B15)))&CHAR(10),\"\")","v":""},null,{"$f":"IFERROR(INDEX(Atividade,SMALL(IF(Meta=$H$2,ROW(Atividade)-MIN(ROW(Atividade))+1),ROWS($B$3:B15)))&CHAR(10),\"\")","v":""}]
[null,{"$f":"IFERROR(INDEX(Atividade,SMALL(IF(Meta=$B$2,ROW(Atividade)-MIN(ROW(Atividade))+1),ROWS($B$3:B16)))&\" \"&CHAR(10)&(INDEX(Resultado,SMALL(IF(Meta=$B$2,ROW(Resultado)-MIN(ROW(Resultado))+1),ROWS($B$3:B16))))&CHAR(10),\"\")","v":""},null,{"$f":"IFERROR(INDEX(Atividade,SMALL(IF(Meta=$D$2,ROW(Atividade)-MIN(ROW(Atividade))+1),ROWS($B$3:B16)))&CHAR(10),\"\")","v":""},null,{"$f":"IFERROR(INDEX(Atividade,SMALL(IF(Meta=$F$2,ROW(Atividade)-MIN(ROW(Atividade))+1),ROWS($B$3:B16)))&CHAR(10),\"\")","v":""},null,{"$f":"IFERROR(INDEX(Atividade,SMALL(IF(Meta=$H$2,ROW(Atividade)-MIN(ROW(Atividade))+1),ROWS($B$3:B16)))&CHAR(10),\"\")","v":""}]
[null,{"$f":"IFERROR(INDEX(Atividade,SMALL(IF(Meta=$B$2,ROW(Atividade)-MIN(ROW(Atividade))+1),ROWS($B$3:B17)))&\" \"&CHAR(10)&(INDEX(Resultado,SMALL(IF(Meta=$B$2,ROW(Resultado)-MIN(ROW(Resultado))+1),ROWS($B$3:B17))))&CHAR(10),\"\")","v":""},null,{"$f":"IFERROR(INDEX(Atividade,SMALL(IF(Meta=$D$2,ROW(Atividade)-MIN(ROW(Atividade))+1),ROWS($B$3:B17)))&CHAR(10),\"\")","v":""},null,{"$f":"IFERROR(INDEX(Atividade,SMALL(IF(Meta=$F$2,ROW(Atividade)-MIN(ROW(Atividade))+1),ROWS($B$3:B17)))&CHAR(10),\"\")","v":""},null,{"$f":"IFERROR(INDEX(Atividade,SMALL(IF(Meta=$H$2,ROW(Atividade)-MIN(ROW(Atividade))+1),ROWS($B$3:B17)))&CHAR(10),\"\")","v":""}]
[null,{"$f":"IFERROR(INDEX(Atividade,SMALL(IF(Meta=$B$2,ROW(Atividade)-MIN(ROW(Atividade))+1),ROWS($B$3:B18)))&\" \"&CHAR(10)&(INDEX(Resultado,SMALL(IF(Meta=$B$2,ROW(Resultado)-MIN(ROW(Resultado))+1),ROWS($B$3:B18))))&CHAR(10),\"\")","v":""},null,{"$f":"IFERROR(INDEX(Atividade,SMALL(IF(Meta=$D$2,ROW(Atividade)-MIN(ROW(Atividade))+1),ROWS($B$3:B18)))&CHAR(10),\"\")","v":""},null,{"$f":"IFERROR(INDEX(Atividade,SMALL(IF(Meta=$F$2,ROW(Atividade)-MIN(ROW(Atividade))+1),ROWS($B$3:B18)))&CHAR(10),\"\")","v":""},null,{"$f":"IFERROR(INDEX(Atividade,SMALL(IF(Meta=$H$2,ROW(Atividade)-MIN(ROW(Atividade))+1),ROWS($B$3:B18)))&CHAR(10),\"\")","v":""}]
[null,{"$f":"IFERROR(INDEX(Atividade,SMALL(IF(Meta=$B$2,ROW(Atividade)-MIN(ROW(Atividade))+1),ROWS($B$3:B19)))&\" \"&CHAR(10)&(INDEX(Resultado,SMALL(IF(Meta=$B$2,ROW(Resultado)-MIN(ROW(Resultado))+1),ROWS($B$3:B19))))&CHAR(10),\"\")","v":""},null,{"$f":"IFERROR(INDEX(Atividade,SMALL(IF(Meta=$D$2,ROW(Atividade)-MIN(ROW(Atividade))+1),ROWS($B$3:B19)))&CHAR(10),\"\")","v":""},null,{"$f":"IFERROR(INDEX(Atividade,SMALL(IF(Meta=$F$2,ROW(Atividade)-MIN(ROW(Atividade))+1),ROWS($B$3:B19)))&CHAR(10),\"\")","v":""},null,{"$f":"IFERROR(INDEX(Atividade,SMALL(IF(Meta=$H$2,ROW(Atividade)-MIN(ROW(Atividade))+1),ROWS($B$3:B19)))&CHAR(10),\"\")","v":""}]
[null,{"$f":"IFERROR(INDEX(Atividade,SMALL(IF(Meta=$B$2,ROW(Atividade)-MIN(ROW(Atividade))+1),ROWS($B$3:B20)))&\" \"&CHAR(10)&(INDEX(Resultado,SMALL(IF(Meta=$B$2,ROW(Resultado)-MIN(ROW(Resultado))+1),ROWS($B$3:B20))))&CHAR(10),\"\")","v":""},null,{"$f":"IFERROR(INDEX(Atividade,SMALL(IF(Meta=$D$2,ROW(Atividade)-MIN(ROW(Atividade))+1),ROWS($B$3:B20)))&CHAR(10),\"\")","v":""},null,{"$f":"IFERROR(INDEX(Atividade,SMALL(IF(Meta=$F$2,ROW(Atividade)-MIN(ROW(Atividade))+1),ROWS($B$3:B20)))&CHAR(10),\"\")","v":""},null,{"$f":"IFERROR(INDEX(Atividade,SMALL(IF(Meta=$H$2,ROW(Atividade)-MIN(ROW(Atividade))+1),ROWS($B$3:B20)))&CHAR(10),\"\")","v":""}]
[null,{"$f":"IFERROR(INDEX(Atividade,SMALL(IF(Meta=$B$2,ROW(Atividade)-MIN(ROW(Atividade))+1),ROWS($B$3:B21)))&\" \"&CHAR(10)&(INDEX(Resultado,SMALL(IF(Meta=$B$2,ROW(Resultado)-MIN(ROW(Resultado))+1),ROWS($B$3:B21))))&CHAR(10),\"\")","v":""},null,{"$f":"IFERROR(INDEX(Atividade,SMALL(IF(Meta=$D$2,ROW(Atividade)-MIN(ROW(Atividade))+1),ROWS($B$3:B21)))&CHAR(10),\"\")","v":""},null,{"$f":"IFERROR(INDEX(Atividade,SMALL(IF(Meta=$F$2,ROW(Atividade)-MIN(ROW(Atividade))+1),ROWS($B$3:B21)))&CHAR(10),\"\")","v":""},null,{"$f":"IFERROR(INDEX(Atividade,SMALL(IF(Meta=$H$2,ROW(Atividade)-MIN(ROW(Atividade))+1),ROWS($B$3:B21)))&CHAR(10),\"\")","v":""}]
[null,{"$f":"IFERROR(INDEX(Atividade,SMALL(IF(Meta=$B$2,ROW(Atividade)-MIN(ROW(Atividade))+1),ROWS($B$3:B22)))&\" \"&CHAR(10)&(INDEX(Resultado,SMALL(IF(Meta=$B$2,ROW(Resultado)-MIN(ROW(Resultado))+1),ROWS($B$3:B22))))&CHAR(10),\"\")","v":""},null,{"$f":"IFERROR(INDEX(Atividade,SMALL(IF(Meta=$D$2,ROW(Atividade)-MIN(ROW(Atividade))+1),ROWS($B$3:B22)))&CHAR(10),\"\")","v":""},null,{"$f":"IFERROR(INDEX(Atividade,SMALL(IF(Meta=$F$2,ROW(Atividade)-MIN(ROW(Atividade))+1),ROWS($B$3:B22)))&CHAR(10),\"\")","v":""},null,{"$f":"IFERROR(INDEX(Atividade,SMALL(IF(Meta=$H$2,ROW(Atividade)-MIN(ROW(Atividade))+1),ROWS($B$3:B22)))&CHAR(10),\"\")","v":""}]
[null,{"$f":"IFERROR(INDEX(Atividade,SMALL(IF(Meta=$B$2,ROW(Atividade)-MIN(ROW(Atividade))+1),ROWS($B$3:B23)))&\" \"&CHAR(10)&(INDEX(Resultado,SMALL(IF(Meta=$B$2,ROW(Resultado)-MIN(ROW(Resultado))+1),ROWS($B$3:B23))))&CHAR(10),\"\")","v":""},null,{"$f":"IFERROR(INDEX(Atividade,SMALL(IF(Meta=$D$2,ROW(Atividade)-MIN(ROW(Atividade))+1),ROWS($B$3:B23)))&CHAR(10),\"\")","v":""},null,{"$f":"IFERROR(INDEX(Atividade,SMALL(IF(Meta=$F$2,ROW(Atividade)-MIN(ROW(Atividade))+1),ROWS($B$3:B23)))&CHAR(10),\"\")","v":""},null,{"$f":"IFERROR(INDEX(Atividade,SMALL(IF(Meta=$H$2,ROW(Atividade)-MIN(ROW(Atividade))+1),ROWS($B$3:B23)))&CHAR(10),\"\")","v":""}]
[null,{"$f":"IFERROR(INDEX(Atividade,SMALL(IF(Meta=$B$2,ROW(Atividade)-MIN(ROW(Atividade))+1),ROWS($B$3:B24)))&\" \"&CHAR(10)&(INDEX(Resultado,SMALL(IF(Meta=$B$2,ROW(Resultado)-MIN(ROW(Resultado))+1),ROWS($B$3:B24))))&CHAR(10),\"\")","v":""},null,{"$f":"IFERROR(INDEX(Atividade,SMALL(IF(Meta=$D$2,ROW(Atividade)-MIN(ROW(Atividade))+1),ROWS($B$3:B24)))&CHAR(10),\"\")","v":""},null,{"$f":"IFERROR(INDEX(Atividade,SMALL(IF(Meta=$F$2,ROW(Atividade)-MIN(ROW(Atividade))+1),ROWS($B$3:B24)))&CHAR(10),\"\")","v":""},null,{"$f":"IFERROR(INDEX(Atividade,SMALL(IF(Meta=$H$2,ROW(Atividade)-MIN(ROW(Atividade))+1),ROWS($B$3:B24)))&CHAR(10),\"\")","v":""}]
[null,{"$f":"IFERROR(INDEX(Atividade,SMALL(IF(Meta=$B$2,ROW(Atividade)-MIN(ROW(Atividade))+1),ROWS($B$3:B25)))&\" \"&CHAR(10)&(INDEX(Resultado,SMALL(IF(Meta=$B$2,ROW(Resultado)-MIN(ROW(Resultado))+1),ROWS($B$3:B25))))&CHAR(10),\"\")","v":""},null,{"$f":"IFERROR(INDEX(Atividade,SMALL(IF(Meta=$D$2,ROW(Atividade)-MIN(ROW(Atividade))+1),ROWS($B$3:B25)))&CHAR(10),\"\")","v":""},null,{"$f":"IFERROR(INDEX(Atividade,SMALL(IF(Meta=$F$2,ROW(Atividade)-MIN(ROW(Atividade))+1),ROWS($B$3:B25)))&CHAR(10),\"\")","v":""},null,{"$f":"IFERROR(INDEX(Atividade,SMALL(IF(Meta=$H$2,ROW(Atividade)-MIN(ROW(Atividade))+1),ROWS($B$3:B25)))&CHAR(10),\"\")","v":""}]
[null,{"$f":"IFERROR(INDEX(Atividade,SMALL(IF(Meta=$B$2,ROW(Atividade)-MIN(ROW(Atividade))+1),ROWS($B$3:B26)))&\" \"&CHAR(10)&(INDEX(Resultado,SMALL(IF(Meta=$B$2,ROW(Resultado)-MIN(ROW(Resultado))+1),ROWS($B$3:B26))))&CHAR(10),\"\")","v":""},null,{"$f":"IFERROR(INDEX(Atividade,SMALL(IF(Meta=$D$2,ROW(Atividade)-MIN(ROW(Atividade))+1),ROWS($B$3:B26)))&CHAR(10),\"\")","v":""},null,{"$f":"IFERROR(INDEX(Atividade,SMALL(IF(Meta=$F$2,ROW(Atividade)-MIN(ROW(Atividade))+1),ROWS($B$3:B26)))&CHAR(10),\"\")","v":""},null,{"$f":"IFERROR(INDEX(Atividade,SMALL(IF(Meta=$H$2,ROW(Atividade)-MIN(ROW(Atividade))+1),ROWS($B$3:B26)))&CHAR(10),\"\")","v":""}]
[null,{"$f":"IFERROR(INDEX(Atividade,SMALL(IF(Meta=$B$2,ROW(Atividade)-MIN(ROW(Atividade))+1),ROWS($B$3:B27)))&\" \"&CHAR(10)&(INDEX(Resultado,SMALL(IF(Meta=$B$2,ROW(Resultado)-MIN(ROW(Resultado))+1),ROWS($B$3:B27))))&CHAR(10),\"\")","v":""},null,{"$f":"IFERROR(INDEX(Atividade,SMALL(IF(Meta=$D$2,ROW(Atividade)-MIN(ROW(Atividade))+1),ROWS($B$3:B27)))&CHAR(10),\"\")","v":""},null,{"$f":"IFERROR(INDEX(Atividade,SMALL(IF(Meta=$F$2,ROW(Atividade)-MIN(ROW(Atividade))+1),ROWS($B$3:B27)))&CHAR(10),\"\")","v":""},null,{"$f":"IFERROR(INDEX(Atividade,SMALL(IF(Meta=$H$2,ROW(Atividade)-MIN(ROW(Atividade))+1),ROWS($B$3:B27)))&CHAR(10),\"\")","v":""}]
[null,{"$f":"IFERROR(INDEX(Atividade,SMALL(IF(Meta=$B$2,ROW(Atividade)-MIN(ROW(Atividade))+1),ROWS($B$3:B28)))&\" \"&CHAR(10)&(INDEX(Resultado,SMALL(IF(Meta=$B$2,ROW(Resultado)-MIN(ROW(Resultado))+1),ROWS($B$3:B28))))&CHAR(10),\"\")","v":""},null,{"$f":"IFERROR(INDEX(Atividade,SMALL(IF(Meta=$D$2,ROW(Atividade)-MIN(ROW(Atividade))+1),ROWS($B$3:B28)))&CHAR(10),\"\")","v":""},null,{"$f":"IFERROR(INDEX(Atividade,SMALL(IF(Meta=$F$2,ROW(Atividade)-MIN(ROW(Atividade))+1),ROWS($B$3:B28)))&CHAR(10),\"\")","v":""},null,{"$f":"IFERROR(INDEX(Atividade,SMALL(IF(Meta=$H$2,ROW(Atividade)-MIN(ROW(Atividade))+1),ROWS($B$3:B28)))&CHAR(10),\"\")","v":""}]
[null,{"$f":"IFERROR(INDEX(Atividade,SMALL(IF(Meta=$B$2,ROW(Atividade)-MIN(ROW(Atividade))+1),ROWS($B$3:B29)))&\" \"&CHAR(10)&(INDEX(Resultado,SMALL(IF(Meta=$B$2,ROW(Resultado)-MIN(ROW(Resultado))+1),ROWS($B$3:B29))))&CHAR(10),\"\")","v":""},null,{"$f":"IFERROR(INDEX(Atividade,SMALL(IF(Meta=$D$2,ROW(Atividade)-MIN(ROW(Atividade))+1),ROWS($B$3:B29)))&CHAR(10),\"\")","v":""},null,{"$f":"IFERROR(INDEX(Atividade,SMALL(IF(Meta=$F$2,ROW(Atividade)-MIN(ROW(Atividade))+1),ROWS($B$3:B29)))&CHAR(10),\"\")","v":""},null,{"$f":"IFERROR(INDEX(Atividade,SMALL(IF(Meta=$H$2,ROW(Atividade)-MIN(ROW(Atividade))+1),ROWS($B$3:B29)))&CHAR(10),\"\")","v":""}]
[null,{"$f":"IFERROR(INDEX(Atividade,SMALL(IF(Meta=$B$2,ROW(Atividade)-MIN(ROW(Atividade))+1),ROWS($B$3:B30)))&\" \"&CHAR(10)&(INDEX(Resultado,SMALL(IF(Meta=$B$2,ROW(Resultado)-MIN(ROW(Resultado))+1),ROWS($B$3:B30))))&CHAR(10),\"\")","v":""},null,{"$f":"IFERROR(INDEX(Atividade,SMALL(IF(Meta=$D$2,ROW(Atividade)-MIN(ROW(Atividade))+1),ROWS($B$3:B30)))&CHAR(10),\"\")","v":""},null,{"$f":"IFERROR(INDEX(Atividade,SMALL(IF(Meta=$F$2,ROW(Atividade)-MIN(ROW(Atividade))+1),ROWS($B$3:B30)))&CHAR(10),\"\")","v":""},null,{"$f":"IFERROR(INDEX(Atividade,SMALL(IF(Meta=$H$2,ROW(Atividade)-MIN(ROW(Atividade))+1),ROWS($B$3:B30)))&CHAR(10),\"\")","v":""}]
[null,{"$f":"IFERROR(INDEX(Atividade,SMALL(IF(Meta=$B$2,ROW(Atividade)-MIN(ROW(Atividade))+1),ROWS($B$3:B31)))&\" \"&CHAR(10)&(INDEX(Resultado,SMALL(IF(Meta=$B$2,ROW(Resultado)-MIN(ROW(Resultado))+1),ROWS($B$3:B31))))&CHAR(10),\"\")","v":""},null,{"$f":"IFERROR(INDEX(Atividade,SMALL(IF(Meta=$D$2,ROW(Atividade)-MIN(ROW(Atividade))+1),ROWS($B$3:B31)))&CHAR(10),\"\")","v":""},null,{"$f":"IFERROR(INDEX(Atividade,SMALL(IF(Meta=$F$2,ROW(Atividade)-MIN(ROW(Atividade))+1),ROWS($B$3:B31)))&CHAR(10),\"\")","v":""},null,{"$f":"IFERROR(INDEX(Atividade,SMALL(IF(Meta=$H$2,ROW(Atividade)-MIN(ROW(Atividade))+1),ROWS($B$3:B31)))&CHAR(10),\"\")","v":""}]
[null,{"$f":"IFERROR(INDEX(Atividade,SMALL(IF(Meta=$B$2,ROW(Atividade)-MIN(ROW(Atividade))+1),ROWS($B$3:B32)))&\" \"&CHAR(10)&(INDEX(Resultado,SMALL(IF(Meta=$B$2,ROW(Resultado)-MIN(ROW(Resultado))+1),ROWS($B$3:B32))))&CHAR(10),\"\")","v":""},null,{"$f":"IFERROR(INDEX(Atividade,SMALL(IF(Meta=$D$2,ROW(Atividade)-MIN(ROW(Atividade))+1),ROWS($B$3:B32)))&CHAR(10),\"\")","v":""},null,{"$f":"IFERROR(INDEX(Atividade,SMALL(IF(Meta=$F$2,ROW(Atividade)-MIN(ROW(Atividade))+1),ROWS($B$3:B32)))&CHAR(10),\"\")","v":""},null,{"$f":"IFERROR(INDEX(Atividade,SMALL(IF(Meta=$H$2,ROW(Atividade)-MIN(ROW(Atividade))+1),ROWS($B$3:B32)))&CHAR(10),\"\")","v":""}]
[null,{"$f":"IFERROR(INDEX(Atividade,SMALL(IF(Meta=$B$2,ROW(Atividade)-MIN(ROW(Atividade))+1),ROWS($B$3:B33)))&\" \"&CHAR(10)&(INDEX(Resultado,SMALL(IF(Meta=$B$2,ROW(Resultado)-MIN(ROW(Resultado))+1),ROWS($B$3:B33))))&CHAR(10),\"\")","v":""},null,{"$f":"IFERROR(INDEX(Atividade,SMALL(IF(Meta=$D$2,ROW(Atividade)-MIN(ROW(Atividade))+1),ROWS($B$3:B33)))&CHAR(10),\"\")","v":""},null,{"$f":"IFERROR(INDEX(Atividade,SMALL(IF(Meta=$F$2,ROW(Atividade)-MIN(ROW(Atividade))+1),ROWS($B$3:B33)))&CHAR(10),\"\")","v":""},null,{"$f":"IFERROR(INDEX(Atividade,SMALL(IF(Meta=$H$2,ROW(Atividade)-MIN(ROW(Atividade))+1),ROWS($B$3:B33)))&CHAR(10),\"\")","v":""}]
[null,{"$f":"IFERROR(INDEX(Atividade,SMALL(IF(Meta=$B$2,ROW(Atividade)-MIN(ROW(Atividade))+1),ROWS($B$3:B34)))&\" \"&CHAR(10)&(INDEX(Resultado,SMALL(IF(Meta=$B$2,ROW(Resultado)-MIN(ROW(Resultado))+1),ROWS($B$3:B34))))&CHAR(10),\"\")","v":""},null,{"$f":"IFERROR(INDEX(Atividade,SMALL(IF(Meta=$D$2,ROW(Atividade)-MIN(ROW(Atividade))+1),ROWS($B$3:B34)))&CHAR(10),\"\")","v":""},null,{"$f":"IFERROR(INDEX(Atividade,SMALL(IF(Meta=$F$2,ROW(Atividade)-MIN(ROW(Atividade))+1),ROWS($B$3:B34)))&CHAR(10),\"\")","v":""},null,{"$f":"IFERROR(INDEX(Atividade,SMALL(IF(Meta=$H$2,ROW(Atividade)-MIN(ROW(Atividade))+1),ROWS($B$3:B34)))&CHAR(10),\"\")","v":""}]
[null,{"$f":"IFERROR(INDEX(Atividade,SMALL(IF(Meta=$B$2,ROW(Atividade)-MIN(ROW(Atividade))+1),ROWS($B$3:B35)))&\" \"&CHAR(10)&(INDEX(Resultado,SMALL(IF(Meta=$B$2,ROW(Resultado)-MIN(ROW(Resultado))+1),ROWS($B$3:B35))))&CHAR(10),\"\")","v":""},null,{"$f":"IFERROR(INDEX(Atividade,SMALL(IF(Meta=$D$2,ROW(Atividade)-MIN(ROW(Atividade))+1),ROWS($B$3:B35)))&CHAR(10),\"\")","v":""},null,{"$f":"IFERROR(INDEX(Atividade,SMALL(IF(Meta=$F$2,ROW(Atividade)-MIN(ROW(Atividade))+1),ROWS($B$3:B35)))&CHAR(10),\"\")","v":""},null,{"$f":"IFERROR(INDEX(Atividade,SMALL(IF(Meta=$H$2,ROW(Atividade)-MIN(ROW(Atividade))+1),ROWS($B$3:B35)))&CHAR(10),\"\")","v":""}]
[null,{"$f":"IFERROR(INDEX(Atividade,SMALL(IF(Meta=$B$2,ROW(Atividade)-MIN(ROW(Atividade))+1),ROWS($B$3:B36)))&\" \"&CHAR(10)&(INDEX(Resultado,SMALL(IF(Meta=$B$2,ROW(Resultado)-MIN(ROW(Resultado))+1),ROWS($B$3:B36))))&CHAR(10),\"\")","v":""},null,{"$f":"IFERROR(INDEX(Atividade,SMALL(IF(Meta=$D$2,ROW(Atividade)-MIN(ROW(Atividade))+1),ROWS($B$3:B36)))&CHAR(10),\"\")","v":""},null,{"$f":"IFERROR(INDEX(Atividade,SMALL(IF(Meta=$F$2,ROW(Atividade)-MIN(ROW(Atividade))+1),ROWS($B$3:B36)))&CHAR(10),\"\")","v":""},null,{"$f":"IFERROR(INDEX(Atividade,SMALL(IF(Meta=$H$2,ROW(Atividade)-MIN(ROW(Atividade))+1),ROWS($B$3:B36)))&CHAR(10),\"\")","v":""}]
[null,{"$f":"IFERROR(INDEX(Atividade,SMALL(IF(Meta=$B$2,ROW(Atividade)-MIN(ROW(Atividade))+1),ROWS($B$3:B37)))&\" \"&CHAR(10)&(INDEX(Resultado,SMALL(IF(Meta=$B$2,ROW(Resultado)-MIN(ROW(Resultado))+1),ROWS($B$3:B37))))&CHAR(10),\"\")","v":""},null,{"$f":"IFERROR(INDEX(Atividade,SMALL(IF(Meta=$D$2,ROW(Atividade)-MIN(ROW(Atividade))+1),ROWS($B$3:B37)))&CHAR(10),\"\")","v":""},null,{"$f":"IFERROR(INDEX(Atividade,SMALL(IF(Meta=$F$2,ROW(Atividade)-MIN(ROW(Atividade))+1),ROWS($B$3:B37)))&CHAR(10),\"\")","v":""},null,{"$f":"IFERROR(INDEX(Atividade,SMALL(IF(Meta=$H$2,ROW(Atividade)-MIN(ROW(Atividade))+1),ROWS($B$3:B37)))&CHAR(10),\"\")","v":""}]
[null,{"$f":"IFERROR(INDEX(Atividade,SMALL(IF(Meta=$B$2,ROW(Atividade)-MIN(ROW(Atividade))+1),ROWS($B$3:B38)))&\" \"&CHAR(10)&(INDEX(Resultado,SMALL(IF(Meta=$B$2,ROW(Resultado)-MIN(ROW(Resultado))+1),ROWS($B$3:B38))))&CHAR(10),\"\")","v":""},null,{"$f":"IFERROR(INDEX(Atividade,SMALL(IF(Meta=$D$2,ROW(Atividade)-MIN(ROW(Atividade))+1),ROWS($B$3:B38)))&CHAR(10),\"\")","v":""},null,{"$f":"IFERROR(INDEX(Atividade,SMALL(IF(Meta=$F$2,ROW(Atividade)-MIN(ROW(Atividade))+1),ROWS($B$3:B38)))&CHAR(10),\"\")","v":""},null,{"$f":"IFERROR(INDEX(Atividade,SMALL(IF(Meta=$H$2,ROW(Atividade)-MIN(ROW(Atividade))+1),ROWS($B$3:B38)))&CHAR(10),\"\")","v":""}]
[null,{"$f":"IFERROR(INDEX(Atividade,SMALL(IF(Meta=$B$2,ROW(Atividade)-MIN(ROW(Atividade))+1),ROWS($B$3:B39)))&\" \"&CHAR(10)&(INDEX(Resultado,SMALL(IF(Meta=$B$2,ROW(Resultado)-MIN(ROW(Resultado))+1),ROWS($B$3:B39))))&CHAR(10),\"\")","v":""},null,{"$f":"IFERROR(INDEX(Atividade,SMALL(IF(Meta=$D$2,ROW(Atividade)-MIN(ROW(Atividade))+1),ROWS($B$3:B39)))&CHAR(10),\"\")","v":""},null,{"$f":"IFERROR(INDEX(Atividade,SMALL(IF(Meta=$F$2,ROW(Atividade)-MIN(ROW(Atividade))+1),ROWS($B$3:B39)))&CHAR(10),\"\")","v":""},null,{"$f":"IFERROR(INDEX(Atividade,SMALL(IF(Meta=$H$2,ROW(Atividade)-MIN(ROW(Atividade))+1),ROWS($B$3:B39)))&CHAR(10),\"\")","v":""}]
[null,{"$f":"IFERROR(INDEX(Atividade,SMALL(IF(Meta=$B$2,ROW(Atividade)-MIN(ROW(Atividade))+1),ROWS($B$3:B40)))&\" \"&CHAR(10)&(INDEX(Resultado,SMALL(IF(Meta=$B$2,ROW(Resultado)-MIN(ROW(Resultado))+1),ROWS($B$3:B40))))&CHAR(10),\"\")","v":""},null,{"$f":"IFERROR(INDEX(Atividade,SMALL(IF(Meta=$D$2,ROW(Atividade)-MIN(ROW(Atividade))+1),ROWS($B$3:B40)))&CHAR(10),\"\")","v":""},null,{"$f":"IFERROR(INDEX(Atividade,SMALL(IF(Meta=$F$2,ROW(Atividade)-MIN(ROW(Atividade))+1),ROWS($B$3:B40)))&CHAR(10),\"\")","v":""},null,{"$f":"IFERROR(INDEX(Atividade,SMALL(IF(Meta=$H$2,ROW(Atividade)-MIN(ROW(Atividade))+1),ROWS($B$3:B40)))&CHAR(10),\"\")","v":""}]
[null,{"$f":"IFERROR(INDEX(Atividade,SMALL(IF(Meta=$B$2,ROW(Atividade)-MIN(ROW(Atividade))+1),ROWS($B$3:B41)))&\" \"&CHAR(10)&(INDEX(Resultado,SMALL(IF(Meta=$B$2,ROW(Resultado)-MIN(ROW(Resultado))+1),ROWS($B$3:B41))))&CHAR(10),\"\")","v":""},null,{"$f":"IFERROR(INDEX(Atividade,SMALL(IF(Meta=$D$2,ROW(Atividade)-MIN(ROW(Atividade))+1),ROWS($B$3:B41)))&CHAR(10),\"\")","v":""},null,{"$f":"IFERROR(INDEX(Atividade,SMALL(IF(Meta=$F$2,ROW(Atividade)-MIN(ROW(Atividade))+1),ROWS($B$3:B41)))&CHAR(10),\"\")","v":""},null,{"$f":"IFERROR(INDEX(Atividade,SMALL(IF(Meta=$H$2,ROW(Atividade)-MIN(ROW(Atividade))+1),ROWS($B$3:B41)))&CHAR(10),\"\")","v":""}]
[null,{"$f":"IFERROR(INDEX(Atividade,SMALL(IF(Meta=$B$2,ROW(Atividade)-MIN(ROW(Atividade))+1),ROWS($B$3:B42)))&\" \"&CHAR(10)&(INDEX(Resultado,SMALL(IF(Meta=$B$2,ROW(Resultado)-MIN(ROW(Resultado))+1),ROWS($B$3:B42))))&CHAR(10),\"\")","v":""},null,{"$f":"IFERROR(INDEX(Atividade,SMALL(IF(Meta=$D$2,ROW(Atividade)-MIN(ROW(Atividade))+1),ROWS($B$3:B42)))&CHAR(10),\"\")","v":""},null,{"$f":"IFERROR(INDEX(Atividade,SMALL(IF(Meta=$F$2,ROW(Atividade)-MIN(ROW(Atividade))+1),ROWS($B$3:B42)))&CHAR(10),\"\")","v":""},null,{"$f":"IFERROR(INDEX(Atividade,SMALL(IF(Meta=$H$2,ROW(Atividade)-MIN(ROW(Atividade))+1),ROWS($B$3:B42)))&CHAR(10),\"\")","v":""}]
[null,{"$f":"IFERROR(INDEX(Atividade,SMALL(IF(Meta=$B$2,ROW(Atividade)-MIN(ROW(Atividade))+1),ROWS($B$3:B43)))&\" \"&CHAR(10)&(INDEX(Resultado,SMALL(IF(Meta=$B$2,ROW(Resultado)-MIN(ROW(Resultado))+1),ROWS($B$3:B43))))&CHAR(10),\"\")","v":""},null,{"$f":"IFERROR(INDEX(Atividade,SMALL(IF(Meta=$D$2,ROW(Atividade)-MIN(ROW(Atividade))+1),ROWS($B$3:B43)))&CHAR(10),\"\")","v":""},null,{"$f":"IFERROR(INDEX(Atividade,SMALL(IF(Meta=$F$2,ROW(Atividade)-MIN(ROW(Atividade))+1),ROWS($B$3:B43)))&CHAR(10),\"\")","v":""},null,{"$f":"IFERROR(INDEX(Atividade,SMALL(IF(Meta=$H$2,ROW(Atividade)-MIN(ROW(Atividade))+1),ROWS($B$3:B43)))&CHAR(10),\"\")","v":""}]
[null,{"$f":"IFERROR(INDEX(Atividade,SMALL(IF(Meta=$B$2,ROW(Atividade)-MIN(ROW(Atividade))+1),ROWS($B$3:B44)))&\" \"&CHAR(10)&(INDEX(Resultado,SMALL(IF(Meta=$B$2,ROW(Resultado)-MIN(ROW(Resultado))+1),ROWS($B$3:B44))))&CHAR(10),\"\")","v":""},null,{"$f":"IFERROR(INDEX(Atividade,SMALL(IF(Meta=$D$2,ROW(Atividade)-MIN(ROW(Atividade))+1),ROWS($B$3:B44)))&CHAR(10),\"\")","v":""},null,{"$f":"IFERROR(INDEX(Atividade,SMALL(IF(Meta=$F$2,ROW(Atividade)-MIN(ROW(Atividade))+1),ROWS($B$3:B44)))&CHAR(10),\"\")","v":""},null,{"$f":"IFERROR(INDEX(Atividade,SMALL(IF(Meta=$H$2,ROW(Atividade)-MIN(ROW(Atividade))+1),ROWS($B$3:B44)))&CHAR(10),\"\")","v":""}]
[null,{"$f":"IFERROR(INDEX(Atividade,SMALL(IF(Meta=$B$2,ROW(Atividade)-MIN(ROW(Atividade))+1),ROWS($B$3:B45)))&\" \"&CHAR(10)&(INDEX(Resultado,SMALL(IF(Meta=$B$2,ROW(Resultado)-MIN(ROW(Resultado))+1),ROWS($B$3:B45))))&CHAR(10),\"\")","v":""},null,{"$f":"IFERROR(INDEX(Atividade,SMALL(IF(Meta=$D$2,ROW(Atividade)-MIN(ROW(Atividade))+1),ROWS($B$3:B45)))&CHAR(10),\"\")","v":""},null,{"$f":"IFERROR(INDEX(Atividade,SMALL(IF(Meta=$F$2,ROW(Atividade)-MIN(ROW(Atividade))+1),ROWS($B$3:B45)))&CHAR(10),\"\")","v":""},null,{"$f":"IFERROR(INDEX(Atividade,SMALL(IF(Meta=$H$2,ROW(Atividade)-MIN(ROW(Atividade))+1),ROWS($B$3:B45)))&CHAR(10),\"\")","v":""}]
[null,{"$f":"IFERROR(INDEX(Atividade,SMALL(IF(Meta=$B$2,ROW(Atividade)-MIN(ROW(Atividade))+1),ROWS($B$3:B46)))&\" \"&CHAR(10)&(INDEX(Resultado,SMALL(IF(Meta=$B$2,ROW(Resultado)-MIN(ROW(Resultado))+1),ROWS($B$3:B46))))&CHAR(10),\"\")","v":""},null,{"$f":"IFERROR(INDEX(Atividade,SMALL(IF(Meta=$D$2,ROW(Atividade)-MIN(ROW(Atividade))+1),ROWS($B$3:B46)))&CHAR(10),\"\")","v":""},null,{"$f":"IFERROR(INDEX(Atividade,SMALL(IF(Meta=$F$2,ROW(Atividade)-MIN(ROW(Atividade))+1),ROWS($B$3:B46)))&CHAR(10),\"\")","v":""},null,{"$f":"IFERROR(INDEX(Atividade,SMALL(IF(Meta=$H$2,ROW(Atividade)-MIN(ROW(Atividade))+1),ROWS($B$3:B46)))&CHAR(10),\"\")","v":""}]
[null,{"$f":"IFERROR(INDEX(Atividade,SMALL(IF(Meta=$B$2,ROW(Atividade)-MIN(ROW(Atividade))+1),ROWS($B$3:B47)))&\" \"&CHAR(10)&(INDEX(Resultado,SMALL(IF(Meta=$B$2,ROW(Resultado)-MIN(ROW(Resultado))+1),ROWS($B$3:B47))))&CHAR(10),\"\")","v":""},null,{"$f":"IFERROR(INDEX(Atividade,SMALL(IF(Meta=$D$2,ROW(Atividade)-MIN(ROW(Atividade))+1),ROWS($B$3:B47)))&CHAR(10),\"\")","v":""},null,{"$f":"IFERROR(INDEX(Atividade,SMALL(IF(Meta=$F$2,ROW(Atividade)-MIN(ROW(Atividade))+1),ROWS($B$3:B47)))&CHAR(10),\"\")","v":""},null,{"$f":"IFERROR(INDEX(Atividade,SMALL(IF(Meta=$H$2,ROW(Atividade)-MIN(ROW(Atividade))+1),ROWS($B$3:B47)))&CHAR(10),\"\")","v":""}]
[null,{"$f":"IFERROR(INDEX(Atividade,SMALL(IF(Meta=$B$2,ROW(Atividade)-MIN(ROW(Atividade))+1),ROWS($B$3:B48)))&\" \"&CHAR(10)&(INDEX(Resultado,SMALL(IF(Meta=$B$2,ROW(Resultado)-MIN(ROW(Resultado))+1),ROWS($B$3:B48))))&CHAR(10),\"\")","v":""},null,{"$f":"IFERROR(INDEX(Atividade,SMALL(IF(Meta=$D$2,ROW(Atividade)-MIN(ROW(Atividade))+1),ROWS($B$3:B48)))&CHAR(10),\"\")","v":""},null,{"$f":"IFERROR(INDEX(Atividade,SMALL(IF(Meta=$F$2,ROW(Atividade)-MIN(ROW(Atividade))+1),ROWS($B$3:B48)))&CHAR(10),\"\")","v":""},null,{"$f":"IFERROR(INDEX(Atividade,SMALL(IF(Meta=$H$2,ROW(Atividade)-MIN(ROW(Atividade))+1),ROWS($B$3:B48)))&CHAR(10),\"\")","v":""}]
[null,{"$f":"IFERROR(INDEX(Atividade,SMALL(IF(Meta=$B$2,ROW(Atividade)-MIN(ROW(Atividade))+1),ROWS($B$3:B49)))&\" \"&CHAR(10)&(INDEX(Resultado,SMALL(IF(Meta=$B$2,ROW(Resultado)-MIN(ROW(Resultado))+1),ROWS($B$3:B49))))&CHAR(10),\"\")","v":""},null,{"$f":"IFERROR(INDEX(Atividade,SMALL(IF(Meta=$D$2,ROW(Atividade)-MIN(ROW(Atividade))+1),ROWS($B$3:B49)))&CHAR(10),\"\")","v":""},null,{"$f":"IFERROR(INDEX(Atividade,SMALL(IF(Meta=$F$2,ROW(Atividade)-MIN(ROW(Atividade))+1),ROWS($B$3:B49)))&CHAR(10),\"\")","v":""},null,{"$f":"IFERROR(INDEX(Atividade,SMALL(IF(Meta=$H$2,ROW(Atividade)-MIN(ROW(Atividade))+1),ROWS($B$3:B49)))&CHAR(10),\"\")","v":""}]
[null,{"$f":"IFERROR(INDEX(Atividade,SMALL(IF(Meta=$B$2,ROW(Atividade)-MIN(ROW(Atividade))+1),ROWS($B$3:B50)))&\" \"&CHAR(10)&(INDEX(Resultado,SMALL(IF(Meta=$B$2,ROW(Resultado)-MIN(ROW(Resultado))+1),ROWS($B$3:B50))))&CHAR(10),\"\")","v":""},null,{"$f":"IFERROR(INDEX(Atividade,SMALL(IF(Meta=$D$2,ROW(Atividade)-MIN(ROW(Atividade))+1),ROWS($B$3:B50)))&CHAR(10),\"\")","v":""},null,{"$f":"IFERROR(INDEX(Atividade,SMALL(IF(Meta=$F$2,ROW(Atividade)-MIN(ROW(Atividade))+1),ROWS($B$3:B50)))&CHAR(10),\"\")","v":""},null,{"$f":"IFERROR(INDEX(Atividade,SMALL(IF(Meta=$H$2,ROW(Atividade)-MIN(ROW(Atividade))+1),ROWS($B$3:B50)))&CHAR(10),\"\")","v":""}]
[null,{"$f":"IFERROR(INDEX(Atividade,SMALL(IF(Meta=$B$2,ROW(Atividade)-MIN(ROW(Atividade))+1),ROWS($B$3:B51)))&\" \"&CHAR(10)&(INDEX(Resultado,SMALL(IF(Meta=$B$2,ROW(Resultado)-MIN(ROW(Resultado))+1),ROWS($B$3:B51))))&CHAR(10),\"\")","v":""},null,{"$f":"IFERROR(INDEX(Atividade,SMALL(IF(Meta=$D$2,ROW(Atividade)-MIN(ROW(Atividade))+1),ROWS($B$3:B51)))&CHAR(10),\"\")","v":""},null,{"$f":"IFERROR(INDEX(Atividade,SMALL(IF(Meta=$F$2,ROW(Atividade)-MIN(ROW(Atividade))+1),ROWS($B$3:B51)))&CHAR(10),\"\")","v":""},null,{"$f":"IFERROR(INDEX(Atividade,SMALL(IF(Meta=$H$2,ROW(Atividade)-MIN(ROW(Atividade))+1),ROWS($B$3:B51)))&CHAR(10),\"\")","v":""}]
[null,{"$f":"IFERROR(INDEX(Atividade,SMALL(IF(Meta=$B$2,ROW(Atividade)-MIN(ROW(Atividade))+1),ROWS($B$3:B52)))&\" \"&CHAR(10)&(INDEX(Resultado,SMALL(IF(Meta=$B$2,ROW(Resultado)-MIN(ROW(Resultado))+1),ROWS($B$3:B52))))&CHAR(10),\"\")","v":""},null,{"$f":"IFERROR(INDEX(Atividade,SMALL(IF(Meta=$D$2,ROW(Atividade)-MIN(ROW(Atividade))+1),ROWS($B$3:B52)))&CHAR(10),\"\")","v":""},null,{"$f":"IFERROR(INDEX(Atividade,SMALL(IF(Meta=$F$2,ROW(Atividade)-MIN(ROW(Atividade))+1),ROWS($B$3:B52)))&CHAR(10),\"\")","v":""},null,{"$f":"IFERROR(INDEX(Atividade,SMALL(IF(Meta=$H$2,ROW(Atividade)-MIN(ROW(Atividade))+1),ROWS($B$3:B52)))&CHAR(10),\"\")","v":""}]
[null,{"$f":"IFERROR(INDEX(Atividade,SMALL(IF(Meta=$B$2,ROW(Atividade)-MIN(ROW(Atividade))+1),ROWS($B$3:B53)))&\" \"&CHAR(10)&(INDEX(Resultado,SMALL(IF(Meta=$B$2,ROW(Resultado)-MIN(ROW(Resultado))+1),ROWS($B$3:B53))))&CHAR(10),\"\")","v":""},null,{"$f":"IFERROR(INDEX(Atividade,SMALL(IF(Meta=$D$2,ROW(Atividade)-MIN(ROW(Atividade))+1),ROWS($B$3:B53)))&CHAR(10),\"\")","v":""},null,{"$f":"IFERROR(INDEX(Atividade,SMALL(IF(Meta=$F$2,ROW(Atividade)-MIN(ROW(Atividade))+1),ROWS($B$3:B53)))&CHAR(10),\"\")","v":""},null,{"$f":"IFERROR(INDEX(Atividade,SMALL(IF(Meta=$H$2,ROW(Atividade)-MIN(ROW(Atividade))+1),ROWS($B$3:B53)))&CHAR(10),\"\")","v":""}]
[null,{"$f":"IFERROR(INDEX(Atividade,SMALL(IF(Meta=$B$2,ROW(Atividade)-MIN(ROW(Atividade))+1),ROWS($B$3:B54)))&\" \"&CHAR(10)&(INDEX(Resultado,SMALL(IF(Meta=$B$2,ROW(Resultado)-MIN(ROW(Resultado))+1),ROWS($B$3:B54))))&CHAR(10),\"\")","v":""},null,{"$f":"IFERROR(INDEX(Atividade,SMALL(IF(Meta=$D$2,ROW(Atividade)-MIN(ROW(Atividade))+1),ROWS($B$3:B54)))&CHAR(10),\"\")","v":""},null,{"$f":"IFERROR(INDEX(Atividade,SMALL(IF(Meta=$F$2,ROW(Atividade)-MIN(ROW(Atividade))+1),ROWS($B$3:B54)))&CHAR(10),\"\")","v":""},null,{"$f":"IFERROR(INDEX(Atividade,SMALL(IF(Meta=$H$2,ROW(Atividade)-MIN(ROW(Atividade))+1),ROWS($B$3:B54)))&CHAR(10),\"\")","v":""}]
[null,{"$f":"IFERROR(INDEX(Atividade,SMALL(IF(Meta=$B$2,ROW(Atividade)-MIN(ROW(Atividade))+1),ROWS($B$3:B55)))&\" \"&CHAR(10)&(INDEX(Resultado,SMALL(IF(Meta=$B$2,ROW(Resultado)-MIN(ROW(Resultado))+1),ROWS($B$3:B55))))&CHAR(10),\"\")","v":""},null,{"$f":"IFERROR(INDEX(Atividade,SMALL(IF(Meta=$D$2,ROW(Atividade)-MIN(ROW(Atividade))+1),ROWS($B$3:B55)))&CHAR(10),\"\")","v":""},null,{"$f":"IFERROR(INDEX(Atividade,SMALL(IF(Meta=$F$2,ROW(Atividade)-MIN(ROW(Atividade))+1),ROWS($B$3:B55)))&CHAR(10),\"\")","v":""},null,{"$f":"IFERROR(INDEX(Atividade,SMALL(IF(Meta=$H$2,ROW(Atividade)-MIN(ROW(Atividade))+1),ROWS($B$3:B55)))&CHAR(10),\"\")","v":""}]
[null,{"$f":"IFERROR(INDEX(Atividade,SMALL(IF(Meta=$B$2,ROW(Atividade)-MIN(ROW(Atividade))+1),ROWS($B$3:B56)))&\" \"&CHAR(10)&(INDEX(Resultado,SMALL(IF(Meta=$B$2,ROW(Resultado)-MIN(ROW(Resultado))+1),ROWS($B$3:B56))))&CHAR(10),\"\")","v":""},null,{"$f":"IFERROR(INDEX(Atividade,SMALL(IF(Meta=$D$2,ROW(Atividade)-MIN(ROW(Atividade))+1),ROWS($B$3:B56)))&CHAR(10),\"\")","v":""},null,{"$f":"IFERROR(INDEX(Atividade,SMALL(IF(Meta=$F$2,ROW(Atividade)-MIN(ROW(Atividade))+1),ROWS($B$3:B56)))&CHAR(10),\"\")","v":""},null,{"$f":"IFERROR(INDEX(Atividade,SMALL(IF(Meta=$H$2,ROW(Atividade)-MIN(ROW(Atividade))+1),ROWS($B$3:B56)))&CHAR(10),\"\")","v":""}]
[null,{"$f":"IFERROR(INDEX(Atividade,SMALL(IF(Meta=$B$2,ROW(Atividade)-MIN(ROW(Atividade))+1),ROWS($B$3:B57)))&\" \"&CHAR(10)&(INDEX(Resultado,SMALL(IF(Meta=$B$2,ROW(Resultado)-MIN(ROW(Resultado))+1),ROWS($B$3:B57))))&CHAR(10),\"\")","v":""},null,{"$f":"IFERROR(INDEX(Atividade,SMALL(IF(Meta=$D$2,ROW(Atividade)-MIN(ROW(Atividade))+1),ROWS($B$3:B57)))&CHAR(10),\"\")","v":""},null,{"$f":"IFERROR(INDEX(Atividade,SMALL(IF(Meta=$F$2,ROW(Atividade)-MIN(ROW(Atividade))+1),ROWS($B$3:B57)))&CHAR(10),\"\")","v":""},null,{"$f":"IFERROR(INDEX(Atividade,SMALL(IF(Meta=$H$2,ROW(Atividade)-MIN(ROW(Atividade))+1),ROWS($B$3:B57)))&CHAR(10),\"\")","v":""}]
[null,{"$f":"IFERROR(INDEX(Atividade,SMALL(IF(Meta=$B$2,ROW(Atividade)-MIN(ROW(Atividade))+1),ROWS($B$3:B58)))&\" \"&CHAR(10)&(INDEX(Resultado,SMALL(IF(Meta=$B$2,ROW(Resultado)-MIN(ROW(Resultado))+1),ROWS($B$3:B58))))&CHAR(10),\"\")","v":""},null,{"$f":"IFERROR(INDEX(Atividade,SMALL(IF(Meta=$D$2,ROW(Atividade)-MIN(ROW(Atividade))+1),ROWS($B$3:B58)))&CHAR(10),\"\")","v":""},null,{"$f":"IFERROR(INDEX(Atividade,SMALL(IF(Meta=$F$2,ROW(Atividade)-MIN(ROW(Atividade))+1),ROWS($B$3:B58)))&CHAR(10),\"\")","v":""},null,{"$f":"IFERROR(INDEX(Atividade,SMALL(IF(Meta=$H$2,ROW(Atividade)-MIN(ROW(Atividade))+1),ROWS($B$3:B58)))&CHAR(10),\"\")","v":""}]
[null,{"$f":"IFERROR(INDEX(Atividade,SMALL(IF(Meta=$B$2,ROW(Atividade)-MIN(ROW(Atividade))+1),ROWS($B$3:B59)))&\" \"&CHAR(10)&(INDEX(Resultado,SMALL(IF(Meta=$B$2,ROW(Resultado)-MIN(ROW(Resultado))+1),ROWS($B$3:B59))))&CHAR(10),\"\")","v":""},null,{"$f":"IFERROR(INDEX(Atividade,SMALL(IF(Meta=$D$2,ROW(Atividade)-MIN(ROW(Atividade))+1),ROWS($B$3:B59)))&CHAR(10),\"\")","v":""},null,{"$f":"IFERROR(INDEX(Atividade,SMALL(IF(Meta=$F$2,ROW(Atividade)-MIN(ROW(Atividade))+1),ROWS($B$3:B59)))&CHAR(10),\"\")","v":""},null,{"$f":"IFERROR(INDEX(Atividade,SMALL(IF(Meta=$H$2,ROW(Atividade)-MIN(ROW(Atividade))+1),ROWS($B$3:B59)))&CHAR(10),\"\")","v":""}]
[null,{"$f":"IFERROR(INDEX(Atividade,SMALL(IF(Meta=$B$2,ROW(Atividade)-MIN(ROW(Atividade))+1),ROWS($B$3:B60)))&\" \"&CHAR(10)&(INDEX(Resultado,SMALL(IF(Meta=$B$2,ROW(Resultado)-MIN(ROW(Resultado))+1),ROWS($B$3:B60))))&CHAR(10),\"\")","v":""},null,{"$f":"IFERROR(INDEX(Atividade,SMALL(IF(Meta=$D$2,ROW(Atividade)-MIN(ROW(Atividade))+1),ROWS($B$3:B60)))&CHAR(10),\"\")","v":""},null,{"$f":"IFERROR(INDEX(Atividade,SMALL(IF(Meta=$F$2,ROW(Atividade)-MIN(ROW(Atividade))+1),ROWS($B$3:B60)))&CHAR(10),\"\")","v":""},null,{"$f":"IFERROR(INDEX(Atividade,SMALL(IF(Meta=$H$2,ROW(Atividade)-MIN(ROW(Atividade))+1),ROWS($B$3:B60)))&CHAR(10),\"\")","v":""}]
[null,{"$f":"IFERROR(INDEX(Atividade,SMALL(IF(Meta=$B$2,ROW(Atividade)-MIN(ROW(Atividade))+1),ROWS($B$3:B61)))&\" \"&CHAR(10)&(INDEX(Resultado,SMALL(IF(Meta=$B$2,ROW(Resultado)-MIN(ROW(Resultado))+1),ROWS($B$3:B61))))&CHAR(10),\"\")","v":""},null,{"$f":"IFERROR(INDEX(Atividade,SMALL(IF(Meta=$D$2,ROW(Atividade)-MIN(ROW(Atividade))+1),ROWS($B$3:B61)))&CHAR(10),\"\")","v":""},null,{"$f":"IFERROR(INDEX(Atividade,SMALL(IF(Meta=$F$2,ROW(Atividade)-MIN(ROW(Atividade))+1),ROWS($B$3:B61)))&CHAR(10),\"\")","v":""},null,{"$f":"IFERROR(INDEX(Atividade,SMALL(IF(Meta=$H$2,ROW(Atividade)-MIN(ROW(Atividade))+1),ROWS($B$3:B61)))&CHAR(10),\"\")","v":""}]
[null,{"$f":"IFERROR(INDEX(Atividade,SMALL(IF(Meta=$B$2,ROW(Atividade)-MIN(ROW(Atividade))+1),ROWS($B$3:B62)))&\" \"&CHAR(10)&(INDEX(Resultado,SMALL(IF(Meta=$B$2,ROW(Resultado)-MIN(ROW(Resultado))+1),ROWS($B$3:B62))))&CHAR(10),\"\")","v":""},null,{"$f":"IFERROR(INDEX(Atividade,SMALL(IF(Meta=$D$2,ROW(Atividade)-MIN(ROW(Atividade))+1),ROWS($B$3:B62)))&CHAR(10),\"\")","v":""},null,{"$f":"IFERROR(INDEX(Atividade,SMALL(IF(Meta=$F$2,ROW(Atividade)-MIN(ROW(Atividade))+1),ROWS($B$3:B62)))&CHAR(10),\"\")","v":""},null,{"$f":"IFERROR(INDEX(Atividade,SMALL(IF(Meta=$H$2,ROW(Atividade)-MIN(ROW(Atividade))+1),ROWS($B$3:B62)))&CHAR(10),\"\")","v":""}]
[null,{"$f":"IFERROR(INDEX(Atividade,SMALL(IF(Meta=$B$2,ROW(Atividade)-MIN(ROW(Atividade))+1),ROWS($B$3:B63)))&\" \"&CHAR(10)&(INDEX(Resultado,SMALL(IF(Meta=$B$2,ROW(Resultado)-MIN(ROW(Resultado))+1),ROWS($B$3:B63))))&CHAR(10),\"\")","v":""},null,{"$f":"IFERROR(INDEX(Atividade,SMALL(IF(Meta=$D$2,ROW(Atividade)-MIN(ROW(Atividade))+1),ROWS($B$3:B63)))&CHAR(10),\"\")","v":""},null,{"$f":"IFERROR(INDEX(Atividade,SMALL(IF(Meta=$F$2,ROW(Atividade)-MIN(ROW(Atividade))+1),ROWS($B$3:B63)))&CHAR(10),\"\")","v":""},null,{"$f":"IFERROR(INDEX(Atividade,SMALL(IF(Meta=$H$2,ROW(Atividade)-MIN(ROW(Atividade))+1),ROWS($B$3:B63)))&CHAR(10),\"\")","v":""}]
[null,{"$f":"IFERROR(INDEX(Atividade,SMALL(IF(Meta=$B$2,ROW(Atividade)-MIN(ROW(Atividade))+1),ROWS($B$3:B64)))&\" \"&CHAR(10)&(INDEX(Resultado,SMALL(IF(Meta=$B$2,ROW(Resultado)-MIN(ROW(Resultado))+1),ROWS($B$3:B64))))&CHAR(10),\"\")","v":""},null,{"$f":"IFERROR(INDEX(Atividade,SMALL(IF(Meta=$D$2,ROW(Atividade)-MIN(ROW(Atividade))+1),ROWS($B$3:B64)))&CHAR(10),\"\")","v":""},null,{"$f":"IFERROR(INDEX(Atividade,SMALL(IF(Meta=$F$2,ROW(Atividade)-MIN(ROW(Atividade))+1),ROWS($B$3:B64)))&CHAR(10),\"\")","v":""},null,{"$f":"IFERROR(INDEX(Atividade,SMALL(IF(Meta=$H$2,ROW(Atividade)-MIN(ROW(Atividade))+1),ROWS($B$3:B64)))&CHAR(10),\"\")","v":""}]
[null,{"$f":"IFERROR(INDEX(Atividade,SMALL(IF(Meta=$B$2,ROW(Atividade)-MIN(ROW(Atividade))+1),ROWS($B$3:B65)))&\" \"&CHAR(10)&(INDEX(Resultado,SMALL(IF(Meta=$B$2,ROW(Resultado)-MIN(ROW(Resultado))+1),ROWS($B$3:B65))))&CHAR(10),\"\")","v":""},null,{"$f":"IFERROR(INDEX(Atividade,SMALL(IF(Meta=$D$2,ROW(Atividade)-MIN(ROW(Atividade))+1),ROWS($B$3:B65)))&CHAR(10),\"\")","v":""},null,{"$f":"IFERROR(INDEX(Atividade,SMALL(IF(Meta=$F$2,ROW(Atividade)-MIN(ROW(Atividade))+1),ROWS($B$3:B65)))&CHAR(10),\"\")","v":""},null,{"$f":"IFERROR(INDEX(Atividade,SMALL(IF(Meta=$H$2,ROW(Atividade)-MIN(ROW(Atividade))+1),ROWS($B$3:B65)))&CHAR(10),\"\")","v":""}]
[null,{"$f":"IFERROR(INDEX(Atividade,SMALL(IF(Meta=$B$2,ROW(Atividade)-MIN(ROW(Atividade))+1),ROWS($B$3:B66)))&\" \"&CHAR(10)&(INDEX(Resultado,SMALL(IF(Meta=$B$2,ROW(Resultado)-MIN(ROW(Resultado))+1),ROWS($B$3:B66))))&CHAR(10),\"\")","v":""},null,{"$f":"IFERROR(INDEX(Atividade,SMALL(IF(Meta=$D$2,ROW(Atividade)-MIN(ROW(Atividade))+1),ROWS($B$3:B66)))&CHAR(10),\"\")","v":""},null,{"$f":"IFERROR(INDEX(Atividade,SMALL(IF(Meta=$F$2,ROW(Atividade)-MIN(ROW(Atividade))+1),ROWS($B$3:B66)))&CHAR(10),\"\")","v":""},null,{"$f":"IFERROR(INDEX(Atividade,SMALL(IF(Meta=$H$2,ROW(Atividade)-MIN(ROW(Atividade))+1),ROWS($B$3:B66)))&CHAR(10),\"\")","v":""}]
[null,{"$f":"IFERROR(INDEX(Atividade,SMALL(IF(Meta=$B$2,ROW(Atividade)-MIN(ROW(Atividade))+1),ROWS($B$3:B67)))&\" \"&CHAR(10)&(INDEX(Resultado,SMALL(IF(Meta=$B$2,ROW(Resultado)-MIN(ROW(Resultado))+1),ROWS($B$3:B67))))&CHAR(10),\"\")","v":""},null,{"$f":"IFERROR(INDEX(Atividade,SMALL(IF(Meta=$D$2,ROW(Atividade)-MIN(ROW(Atividade))+1),ROWS($B$3:B67)))&CHAR(10),\"\")","v":""},null,{"$f":"IFERROR(INDEX(Atividade,SMALL(IF(Meta=$F$2,ROW(Atividade)-MIN(ROW(Atividade))+1),ROWS($B$3:B67)))&CHAR(10),\"\")","v":""},null,{"$f":"IFERROR(INDEX(Atividade,SMALL(IF(Meta=$H$2,ROW(Atividade)-MIN(ROW(Atividade))+1),ROWS($B$3:B67)))&CHAR(10),\"\")","v":""}]
[null,{"$f":"IFERROR(INDEX(Atividade,SMALL(IF(Meta=$B$2,ROW(Atividade)-MIN(ROW(Atividade))+1),ROWS($B$3:B68)))&\" \"&CHAR(10)&(INDEX(Resultado,SMALL(IF(Meta=$B$2,ROW(Resultado)-MIN(ROW(Resultado))+1),ROWS($B$3:B68))))&CHAR(10),\"\")","v":""},null,{"$f":"IFERROR(INDEX(Atividade,SMALL(IF(Meta=$D$2,ROW(Atividade)-MIN(ROW(Atividade))+1),ROWS($B$3:B68)))&CHAR(10),\"\")","v":""},null,{"$f":"IFERROR(INDEX(Atividade,SMALL(IF(Meta=$F$2,ROW(Atividade)-MIN(ROW(Atividade))+1),ROWS($B$3:B68)))&CHAR(10),\"\")","v":""},null,{"$f":"IFERROR(INDEX(Atividade,SMALL(IF(Meta=$H$2,ROW(Atividade)-MIN(ROW(Atividade))+1),ROWS($B$3:B68)))&CHAR(10),\"\")","v":""}]
[null,{"$f":"IFERROR(INDEX(Atividade,SMALL(IF(Meta=$B$2,ROW(Atividade)-MIN(ROW(Atividade))+1),ROWS($B$3:B69)))&\" \"&CHAR(10)&(INDEX(Resultado,SMALL(IF(Meta=$B$2,ROW(Resultado)-MIN(ROW(Resultado))+1),ROWS($B$3:B69))))&CHAR(10),\"\")","v":""},null,{"$f":"IFERROR(INDEX(Atividade,SMALL(IF(Meta=$D$2,ROW(Atividade)-MIN(ROW(Atividade))+1),ROWS($B$3:B69)))&CHAR(10),\"\")","v":""},null,{"$f":"IFERROR(INDEX(Atividade,SMALL(IF(Meta=$F$2,ROW(Atividade)-MIN(ROW(Atividade))+1),ROWS($B$3:B69)))&CHAR(10),\"\")","v":""},null,{"$f":"IFERROR(INDEX(Atividade,SMALL(IF(Meta=$H$2,ROW(Atividade)-MIN(ROW(Atividade))+1),ROWS($B$3:B69)))&CHAR(10),\"\")","v":""}]
[null,{"$f":"IFERROR(INDEX(Atividade,SMALL(IF(Meta=$B$2,ROW(Atividade)-MIN(ROW(Atividade))+1),ROWS($B$3:B70)))&\" \"&CHAR(10)&(INDEX(Resultado,SMALL(IF(Meta=$B$2,ROW(Resultado)-MIN(ROW(Resultado))+1),ROWS($B$3:B70))))&CHAR(10),\"\")","v":""},null,{"$f":"IFERROR(INDEX(Atividade,SMALL(IF(Meta=$D$2,ROW(Atividade)-MIN(ROW(Atividade))+1),ROWS($B$3:B70)))&CHAR(10),\"\")","v":""},null,{"$f":"IFERROR(INDEX(Atividade,SMALL(IF(Meta=$F$2,ROW(Atividade)-MIN(ROW(Atividade))+1),ROWS($B$3:B70)))&CHAR(10),\"\")","v":""},null,{"$f":"IFERROR(INDEX(Atividade,SMALL(IF(Meta=$H$2,ROW(Atividade)-MIN(ROW(Atividade))+1),ROWS($B$3:B70)))&CHAR(10),\"\")","v":""}]
[null,{"$f":"IFERROR(INDEX(Atividade,SMALL(IF(Meta=$B$2,ROW(Atividade)-MIN(ROW(Atividade))+1),ROWS($B$3:B71)))&\" \"&CHAR(10)&(INDEX(Resultado,SMALL(IF(Meta=$B$2,ROW(Resultado)-MIN(ROW(Resultado))+1),ROWS($B$3:B71))))&CHAR(10),\"\")","v":""},null,{"$f":"IFERROR(INDEX(Atividade,SMALL(IF(Meta=$D$2,ROW(Atividade)-MIN(ROW(Atividade))+1),ROWS($B$3:B71)))&CHAR(10),\"\")","v":""},null,{"$f":"IFERROR(INDEX(Atividade,SMALL(IF(Meta=$F$2,ROW(Atividade)-MIN(ROW(Atividade))+1),ROWS($B$3:B71)))&CHAR(10),\"\")","v":""},null,{"$f":"IFERROR(INDEX(Atividade,SMALL(IF(Meta=$H$2,ROW(Atividade)-MIN(ROW(Atividade))+1),ROWS($B$3:B71)))&CHAR(10),\"\")","v":""}]
[null,{"$f":"IFERROR(INDEX(Atividade,SMALL(IF(Meta=$B$2,ROW(Atividade)-MIN(ROW(Atividade))+1),ROWS($B$3:B72)))&\" \"&CHAR(10)&(INDEX(Resultado,SMALL(IF(Meta=$B$2,ROW(Resultado)-MIN(ROW(Resultado))+1),ROWS($B$3:B72))))&CHAR(10),\"\")","v":""},null,{"$f":"IFERROR(INDEX(Atividade,SMALL(IF(Meta=$D$2,ROW(Atividade)-MIN(ROW(Atividade))+1),ROWS($B$3:B72)))&CHAR(10),\"\")","v":""},null,{"$f":"IFERROR(INDEX(Atividade,SMALL(IF(Meta=$F$2,ROW(Atividade)-MIN(ROW(Atividade))+1),ROWS($B$3:B72)))&CHAR(10),\"\")","v":""},null,{"$f":"IFERROR(INDEX(Atividade,SMALL(IF(Meta=$H$2,ROW(Atividade)-MIN(ROW(Atividade))+1),ROWS($B$3:B72)))&CHAR(10),\"\")","v":""}]
[null,{"$f":"IFERROR(INDEX(Atividade,SMALL(IF(Meta=$B$2,ROW(Atividade)-MIN(ROW(Atividade))+1),ROWS($B$3:B73)))&\" \"&CHAR(10)&(INDEX(Resultado,SMALL(IF(Meta=$B$2,ROW(Resultado)-MIN(ROW(Resultado))+1),ROWS($B$3:B73))))&CHAR(10),\"\")","v":""},null,{"$f":"IFERROR(INDEX(Atividade,SMALL(IF(Meta=$D$2,ROW(Atividade)-MIN(ROW(Atividade))+1),ROWS($B$3:B73)))&CHAR(10),\"\")","v":""},null,{"$f":"IFERROR(INDEX(Atividade,SMALL(IF(Meta=$F$2,ROW(Atividade)-MIN(ROW(Atividade))+1),ROWS($B$3:B73)))&CHAR(10),\"\")","v":""},null,{"$f":"IFERROR(INDEX(Atividade,SMALL(IF(Meta=$H$2,ROW(Atividade)-MIN(ROW(Atividade))+1),ROWS($B$3:B73)))&CHAR(10),\"\")","v":""}]
[null,{"$f":"IFERROR(INDEX(Atividade,SMALL(IF(Meta=$B$2,ROW(Atividade)-MIN(ROW(Atividade))+1),ROWS($B$3:B74)))&\" \"&CHAR(10)&(INDEX(Resultado,SMALL(IF(Meta=$B$2,ROW(Resultado)-MIN(ROW(Resultado))+1),ROWS($B$3:B74))))&CHAR(10),\"\")","v":""},null,{"$f":"IFERROR(INDEX(Atividade,SMALL(IF(Meta=$D$2,ROW(Atividade)-MIN(ROW(Atividade))+1),ROWS($B$3:B74)))&CHAR(10),\"\")","v":""},null,{"$f":"IFERROR(INDEX(Atividade,SMALL(IF(Meta=$F$2,ROW(Atividade)-MIN(ROW(Atividade))+1),ROWS($B$3:B74)))&CHAR(10),\"\")","v":""},null,{"$f":"IFERROR(INDEX(Atividade,SMALL(IF(Meta=$H$2,ROW(Atividade)-MIN(ROW(Atividade))+1),ROWS($B$3:B74)))&CHAR(10),\"\")","v":""}]
[null,{"$f":"IFERROR(INDEX(Atividade,SMALL(IF(Meta=$B$2,ROW(Atividade)-MIN(ROW(Atividade))+1),ROWS($B$3:B75)))&\" \"&CHAR(10)&(INDEX(Resultado,SMALL(IF(Meta=$B$2,ROW(Resultado)-MIN(ROW(Resultado))+1),ROWS($B$3:B75))))&CHAR(10),\"\")","v":""},null,{"$f":"IFERROR(INDEX(Atividade,SMALL(IF(Meta=$D$2,ROW(Atividade)-MIN(ROW(Atividade))+1),ROWS($B$3:B75)))&CHAR(10),\"\")","v":""},null,{"$f":"IFERROR(INDEX(Atividade,SMALL(IF(Meta=$F$2,ROW(Atividade)-MIN(ROW(Atividade))+1),ROWS($B$3:B75)))&CHAR(10),\"\")","v":""},null,{"$f":"IFERROR(INDEX(Atividade,SMALL(IF(Meta=$H$2,ROW(Atividade)-MIN(ROW(Atividade))+1),ROWS($B$3:B75)))&CHAR(10),\"\")","v":""}]
[null,{"$f":"IFERROR(INDEX(Atividade,SMALL(IF(Meta=$B$2,ROW(Atividade)-MIN(ROW(Atividade))+1),ROWS($B$3:B76)))&\" \"&CHAR(10)&(INDEX(Resultado,SMALL(IF(Meta=$B$2,ROW(Resultado)-MIN(ROW(Resultado))+1),ROWS($B$3:B76))))&CHAR(10),\"\")","v":""},null,{"$f":"IFERROR(INDEX(Atividade,SMALL(IF(Meta=$D$2,ROW(Atividade)-MIN(ROW(Atividade))+1),ROWS($B$3:B76)))&CHAR(10),\"\")","v":""},null,{"$f":"IFERROR(INDEX(Atividade,SMALL(IF(Meta=$F$2,ROW(Atividade)-MIN(ROW(Atividade))+1),ROWS($B$3:B76)))&CHAR(10),\"\")","v":""},null,{"$f":"IFERROR(INDEX(Atividade,SMALL(IF(Meta=$H$2,ROW(Atividade)-MIN(ROW(Atividade))+1),ROWS($B$3:B76)))&CHAR(10),\"\")","v":""}]
[null,{"$f":"IFERROR(INDEX(Atividade,SMALL(IF(Meta=$B$2,ROW(Atividade)-MIN(ROW(Atividade))+1),ROWS($B$3:B77)))&\" \"&CHAR(10)&(INDEX(Resultado,SMALL(IF(Meta=$B$2,ROW(Resultado)-MIN(ROW(Resultado))+1),ROWS($B$3:B77))))&CHAR(10),\"\")","v":""},null,{"$f":"IFERROR(INDEX(Atividade,SMALL(IF(Meta=$D$2,ROW(Atividade)-MIN(ROW(Atividade))+1),ROWS($B$3:B77)))&CHAR(10),\"\")","v":""},null,{"$f":"IFERROR(INDEX(Atividade,SMALL(IF(Meta=$F$2,ROW(Atividade)-MIN(ROW(Atividade))+1),ROWS($B$3:B77)))&CHAR(10),\"\")","v":""},null,{"$f":"IFERROR(INDEX(Atividade,SMALL(IF(Meta=$H$2,ROW(Atividade)-MIN(ROW(Atividade))+1),ROWS($B$3:B77)))&CHAR(10),\"\")","v":""}]
[null,{"$f":"IFERROR(INDEX(Atividade,SMALL(IF(Meta=$B$2,ROW(Atividade)-MIN(ROW(Atividade))+1),ROWS($B$3:B78)))&\" \"&CHAR(10)&(INDEX(Resultado,SMALL(IF(Meta=$B$2,ROW(Resultado)-MIN(ROW(Resultado))+1),ROWS($B$3:B78))))&CHAR(10),\"\")","v":""},null,{"$f":"IFERROR(INDEX(Atividade,SMALL(IF(Meta=$D$2,ROW(Atividade)-MIN(ROW(Atividade))+1),ROWS($B$3:B78)))&CHAR(10),\"\")","v":""},null,{"$f":"IFERROR(INDEX(Atividade,SMALL(IF(Meta=$F$2,ROW(Atividade)-MIN(ROW(Atividade))+1),ROWS($B$3:B78)))&CHAR(10),\"\")","v":""},null,{"$f":"IFERROR(INDEX(Atividade,SMALL(IF(Meta=$H$2,ROW(Atividade)-MIN(ROW(Atividade))+1),ROWS($B$3:B78)))&CHAR(10),\"\")","v":""}]
[null,{"$f":"IFERROR(INDEX(Atividade,SMALL(IF(Meta=$B$2,ROW(Atividade)-MIN(ROW(Atividade))+1),ROWS($B$3:B79)))&\" \"&CHAR(10)&(INDEX(Resultado,SMALL(IF(Meta=$B$2,ROW(Resultado)-MIN(ROW(Resultado))+1),ROWS($B$3:B79))))&CHAR(10),\"\")","v":""},null,{"$f":"IFERROR(INDEX(Atividade,SMALL(IF(Meta=$D$2,ROW(Atividade)-MIN(ROW(Atividade))+1),ROWS($B$3:B79)))&CHAR(10),\"\")","v":""},null,{"$f":"IFERROR(INDEX(Atividade,SMALL(IF(Meta=$F$2,ROW(Atividade)-MIN(ROW(Atividade))+1),ROWS($B$3:B79)))&CHAR(10),\"\")","v":""},null,{"$f":"IFERROR(INDEX(Atividade,SMALL(IF(Meta=$H$2,ROW(Atividade)-MIN(ROW(Atividade))+1),ROWS($B$3:B79)))&CHAR(10),\"\")","v":""}]
[null,{"$f":"IFERROR(INDEX(Atividade,SMALL(IF(Meta=$B$2,ROW(Atividade)-MIN(ROW(Atividade))+1),ROWS($B$3:B80)))&\" \"&CHAR(10)&(INDEX(Resultado,SMALL(IF(Meta=$B$2,ROW(Resultado)-MIN(ROW(Resultado))+1),ROWS($B$3:B80))))&CHAR(10),\"\")","v":""},null,{"$f":"IFERROR(INDEX(Atividade,SMALL(IF(Meta=$D$2,ROW(Atividade)-MIN(ROW(Atividade))+1),ROWS($B$3:B80)))&CHAR(10),\"\")","v":""},null,{"$f":"IFERROR(INDEX(Atividade,SMALL(IF(Meta=$F$2,ROW(Atividade)-MIN(ROW(Atividade))+1),ROWS($B$3:B80)))&CHAR(10),\"\")","v":""},null,{"$f":"IFERROR(INDEX(Atividade,SMALL(IF(Meta=$H$2,ROW(Atividade)-MIN(ROW(Atividade))+1),ROWS($B$3:B80)))&CHAR(10),\"\")","v":""}]
[null,{"$f":"IFERROR(INDEX(Atividade,SMALL(IF(Meta=$B$2,ROW(Atividade)-MIN(ROW(Atividade))+1),ROWS($B$3:B81)))&\" \"&CHAR(10)&(INDEX(Resultado,SMALL(IF(Meta=$B$2,ROW(Resultado)-MIN(ROW(Resultado))+1),ROWS($B$3:B81))))&CHAR(10),\"\")","v":""},null,{"$f":"IFERROR(INDEX(Atividade,SMALL(IF(Meta=$D$2,ROW(Atividade)-MIN(ROW(Atividade))+1),ROWS($B$3:B81)))&CHAR(10),\"\")","v":""},null,{"$f":"IFERROR(INDEX(Atividade,SMALL(IF(Meta=$F$2,ROW(Atividade)-MIN(ROW(Atividade))+1),ROWS($B$3:B81)))&CHAR(10),\"\")","v":""},null,{"$f":"IFERROR(INDEX(Atividade,SMALL(IF(Meta=$H$2,ROW(Atividade)-MIN(ROW(Atividade))+1),ROWS($B$3:B81)))&CHAR(10),\"\")","v":""}]
[null,{"$f":"IFERROR(INDEX(Atividade,SMALL(IF(Meta=$B$2,ROW(Atividade)-MIN(ROW(Atividade))+1),ROWS($B$3:B82)))&\" \"&CHAR(10)&(INDEX(Resultado,SMALL(IF(Meta=$B$2,ROW(Resultado)-MIN(ROW(Resultado))+1),ROWS($B$3:B82))))&CHAR(10),\"\")","v":""},null,{"$f":"IFERROR(INDEX(Atividade,SMALL(IF(Meta=$D$2,ROW(Atividade)-MIN(ROW(Atividade))+1),ROWS($B$3:B82)))&CHAR(10),\"\")","v":""},null,{"$f":"IFERROR(INDEX(Atividade,SMALL(IF(Meta=$F$2,ROW(Atividade)-MIN(ROW(Atividade))+1),ROWS($B$3:B82)))&CHAR(10),\"\")","v":""},null,{"$f":"IFERROR(INDEX(Atividade,SMALL(IF(Meta=$H$2,ROW(Atividade)-MIN(ROW(Atividade))+1),ROWS($B$3:B82)))&CHAR(10),\"\")","v":""}]
[null,{"$f":"IFERROR(INDEX(Atividade,SMALL(IF(Meta=$B$2,ROW(Atividade)-MIN(ROW(Atividade))+1),ROWS($B$3:B83)))&\" \"&CHAR(10)&(INDEX(Resultado,SMALL(IF(Meta=$B$2,ROW(Resultado)-MIN(ROW(Resultado))+1),ROWS($B$3:B83))))&CHAR(10),\"\")","v":""},null,{"$f":"IFERROR(INDEX(Atividade,SMALL(IF(Meta=$D$2,ROW(Atividade)-MIN(ROW(Atividade))+1),ROWS($B$3:B83)))&CHAR(10),\"\")","v":""},null,{"$f":"IFERROR(INDEX(Atividade,SMALL(IF(Meta=$F$2,ROW(Atividade)-MIN(ROW(Atividade))+1),ROWS($B$3:B83)))&CHAR(10),\"\")","v":""},null,{"$f":"IFERROR(INDEX(Atividade,SMALL(IF(Meta=$H$2,ROW(Atividade)-MIN(ROW(Atividade))+1),ROWS($B$3:B83)))&CHAR(10),\"\")","v":""}]
[null,{"$f":"IFERROR(INDEX(Atividade,SMALL(IF(Meta=$B$2,ROW(Atividade)-MIN(ROW(Atividade))+1),ROWS($B$3:B84)))&\" \"&CHAR(10)&(INDEX(Resultado,SMALL(IF(Meta=$B$2,ROW(Resultado)-MIN(ROW(Resultado))+1),ROWS($B$3:B84))))&CHAR(10),\"\")","v":""},null,{"$f":"IFERROR(INDEX(Atividade,SMALL(IF(Meta=$D$2,ROW(Atividade)-MIN(ROW(Atividade))+1),ROWS($B$3:B84)))&CHAR(10),\"\")","v":""},null,{"$f":"IFERROR(INDEX(Atividade,SMALL(IF(Meta=$F$2,ROW(Atividade)-MIN(ROW(Atividade))+1),ROWS($B$3:B84)))&CHAR(10),\"\")","v":""},null,{"$f":"IFERROR(INDEX(Atividade,SMALL(IF(Meta=$H$2,ROW(Atividade)-MIN(ROW(Atividade))+1),ROWS($B$3:B84)))&CHAR(10),\"\")","v":""}]
[null,{"$f":"IFERROR(INDEX(Atividade,SMALL(IF(Meta=$B$2,ROW(Atividade)-MIN(ROW(Atividade))+1),ROWS($B$3:B85)))&\" \"&CHAR(10)&(INDEX(Resultado,SMALL(IF(Meta=$B$2,ROW(Resultado)-MIN(ROW(Resultado))+1),ROWS($B$3:B85))))&CHAR(10),\"\")","v":""},null,{"$f":"IFERROR(INDEX(Atividade,SMALL(IF(Meta=$D$2,ROW(Atividade)-MIN(ROW(Atividade))+1),ROWS($B$3:B85)))&CHAR(10),\"\")","v":""},null,{"$f":"IFERROR(INDEX(Atividade,SMALL(IF(Meta=$F$2,ROW(Atividade)-MIN(ROW(Atividade))+1),ROWS($B$3:B85)))&CHAR(10),\"\")","v":""},null,{"$f":"IFERROR(INDEX(Atividade,SMALL(IF(Meta=$H$2,ROW(Atividade)-MIN(ROW(Atividade))+1),ROWS($B$3:B85)))&CHAR(10),\"\")","v":""}]
[null,{"$f":"IFERROR(INDEX(Atividade,SMALL(IF(Meta=$B$2,ROW(Atividade)-MIN(ROW(Atividade))+1),ROWS($B$3:B86)))&\" \"&CHAR(10)&(INDEX(Resultado,SMALL(IF(Meta=$B$2,ROW(Resultado)-MIN(ROW(Resultado))+1),ROWS($B$3:B86))))&CHAR(10),\"\")","v":""},null,{"$f":"IFERROR(INDEX(Atividade,SMALL(IF(Meta=$D$2,ROW(Atividade)-MIN(ROW(Atividade))+1),ROWS($B$3:B86)))&CHAR(10),\"\")","v":""},null,{"$f":"IFERROR(INDEX(Atividade,SMALL(IF(Meta=$F$2,ROW(Atividade)-MIN(ROW(Atividade))+1),ROWS($B$3:B86)))&CHAR(10),\"\")","v":""},null,{"$f":"IFERROR(INDEX(Atividade,SMALL(IF(Meta=$H$2,ROW(Atividade)-MIN(ROW(Atividade))+1),ROWS($B$3:B86)))&CHAR(10),\"\")","v":""}]
[null,{"$f":"IFERROR(INDEX(Atividade,SMALL(IF(Meta=$B$2,ROW(Atividade)-MIN(ROW(Atividade))+1),ROWS($B$3:B87)))&\" \"&CHAR(10)&(INDEX(Resultado,SMALL(IF(Meta=$B$2,ROW(Resultado)-MIN(ROW(Resultado))+1),ROWS($B$3:B87))))&CHAR(10),\"\")","v":""},null,{"$f":"IFERROR(INDEX(Atividade,SMALL(IF(Meta=$D$2,ROW(Atividade)-MIN(ROW(Atividade))+1),ROWS($B$3:B87)))&CHAR(10),\"\")","v":""},null,{"$f":"IFERROR(INDEX(Atividade,SMALL(IF(Meta=$F$2,ROW(Atividade)-MIN(ROW(Atividade))+1),ROWS($B$3:B87)))&CHAR(10),\"\")","v":""},null,{"$f":"IFERROR(INDEX(Atividade,SMALL(IF(Meta=$H$2,ROW(Atividade)-MIN(ROW(Atividade))+1),ROWS($B$3:B87)))&CHAR(10),\"\")","v":""}]
[null,{"$f":"IFERROR(INDEX(Atividade,SMALL(IF(Meta=$B$2,ROW(Atividade)-MIN(ROW(Atividade))+1),ROWS($B$3:B88)))&\" \"&CHAR(10)&(INDEX(Resultado,SMALL(IF(Meta=$B$2,ROW(Resultado)-MIN(ROW(Resultado))+1),ROWS($B$3:B88))))&CHAR(10),\"\")","v":""},null,{"$f":"IFERROR(INDEX(Atividade,SMALL(IF(Meta=$D$2,ROW(Atividade)-MIN(ROW(Atividade))+1),ROWS($B$3:B88)))&CHAR(10),\"\")","v":""},null,{"$f":"IFERROR(INDEX(Atividade,SMALL(IF(Meta=$F$2,ROW(Atividade)-MIN(ROW(Atividade))+1),ROWS($B$3:B88)))&CHAR(10),\"\")","v":""},null,{"$f":"IFERROR(INDEX(Atividade,SMALL(IF(Meta=$H$2,ROW(Atividade)-MIN(ROW(Atividade))+1),ROWS($B$3:B88)))&CHAR(10),\"\")","v":""}]
[null,{"$f":"IFERROR(INDEX(Atividade,SMALL(IF(Meta=$B$2,ROW(Atividade)-MIN(ROW(Atividade))+1),ROWS($B$3:B89)))&\" \"&CHAR(10)&(INDEX(Resultado,SMALL(IF(Meta=$B$2,ROW(Resultado)-MIN(ROW(Resultado))+1),ROWS($B$3:B89))))&CHAR(10),\"\")","v":""},null,{"$f":"IFERROR(INDEX(Atividade,SMALL(IF(Meta=$D$2,ROW(Atividade)-MIN(ROW(Atividade))+1),ROWS($B$3:B89)))&CHAR(10),\"\")","v":""},null,{"$f":"IFERROR(INDEX(Atividade,SMALL(IF(Meta=$F$2,ROW(Atividade)-MIN(ROW(Atividade))+1),ROWS($B$3:B89)))&CHAR(10),\"\")","v":""},null,{"$f":"IFERROR(INDEX(Atividade,SMALL(IF(Meta=$H$2,ROW(Atividade)-MIN(ROW(Atividade))+1),ROWS($B$3:B89)))&CHAR(10),\"\")","v":""}]
[null,{"$f":"IFERROR(INDEX(Atividade,SMALL(IF(Meta=$B$2,ROW(Atividade)-MIN(ROW(Atividade))+1),ROWS($B$3:B90)))&\" \"&CHAR(10)&(INDEX(Resultado,SMALL(IF(Meta=$B$2,ROW(Resultado)-MIN(ROW(Resultado))+1),ROWS($B$3:B90))))&CHAR(10),\"\")","v":""},null,{"$f":"IFERROR(INDEX(Atividade,SMALL(IF(Meta=$D$2,ROW(Atividade)-MIN(ROW(Atividade))+1),ROWS($B$3:B90)))&CHAR(10),\"\")","v":""},null,{"$f":"IFERROR(INDEX(Atividade,SMALL(IF(Meta=$F$2,ROW(Atividade)-MIN(ROW(Atividade))+1),ROWS($B$3:B90)))&CHAR(10),\"\")","v":""},null,{"$f":"IFERROR(INDEX(Atividade,SMALL(IF(Meta=$H$2,ROW(Atividade)-MIN(ROW(Atividade))+1),ROWS($B$3:B90)))&CHAR(10),\"\")","v":""}]
[null,{"$f":"IFERROR(INDEX(Atividade,SMALL(IF(Meta=$B$2,ROW(Atividade)-MIN(ROW(Atividade))+1),ROWS($B$3:B91)))&\" \"&CHAR(10)&(INDEX(Resultado,SMALL(IF(Meta=$B$2,ROW(Resultado)-MIN(ROW(Resultado))+1),ROWS($B$3:B91))))&CHAR(10),\"\")","v":""},null,{"$f":"IFERROR(INDEX(Atividade,SMALL(IF(Meta=$D$2,ROW(Atividade)-MIN(ROW(Atividade))+1),ROWS($B$3:B91)))&CHAR(10),\"\")","v":""},null,{"$f":"IFERROR(INDEX(Atividade,SMALL(IF(Meta=$F$2,ROW(Atividade)-MIN(ROW(Atividade))+1),ROWS($B$3:B91)))&CHAR(10),\"\")","v":""},null,{"$f":"IFERROR(INDEX(Atividade,SMALL(IF(Meta=$H$2,ROW(Atividade)-MIN(ROW(Atividade))+1),ROWS($B$3:B91)))&CHAR(10),\"\")","v":""}]
[null,{"$f":"IFERROR(INDEX(Atividade,SMALL(IF(Meta=$B$2,ROW(Atividade)-MIN(ROW(Atividade))+1),ROWS($B$3:B92)))&\" \"&CHAR(10)&(INDEX(Resultado,SMALL(IF(Meta=$B$2,ROW(Resultado)-MIN(ROW(Resultado))+1),ROWS($B$3:B92))))&CHAR(10),\"\")","v":""},null,{"$f":"IFERROR(INDEX(Atividade,SMALL(IF(Meta=$D$2,ROW(Atividade)-MIN(ROW(Atividade))+1),ROWS($B$3:B92)))&CHAR(10),\"\")","v":""},null,{"$f":"IFERROR(INDEX(Atividade,SMALL(IF(Meta=$F$2,ROW(Atividade)-MIN(ROW(Atividade))+1),ROWS($B$3:B92)))&CHAR(10),\"\")","v":""},null,{"$f":"IFERROR(INDEX(Atividade,SMALL(IF(Meta=$H$2,ROW(Atividade)-MIN(ROW(Atividade))+1),ROWS($B$3:B92)))&CHAR(10),\"\")","v":""}]
[null,{"$f":"IFERROR(INDEX(Atividade,SMALL(IF(Meta=$B$2,ROW(Atividade)-MIN(ROW(Atividade))+1),ROWS($B$3:B93)))&\" \"&CHAR(10)&(INDEX(Resultado,SMALL(IF(Meta=$B$2,ROW(Resultado)-MIN(ROW(Resultado))+1),ROWS($B$3:B93))))&CHAR(10),\"\")","v":""},null,{"$f":"IFERROR(INDEX(Atividade,SMALL(IF(Meta=$D$2,ROW(Atividade)-MIN(ROW(Atividade))+1),ROWS($B$3:B93)))&CHAR(10),\"\")","v":""},null,{"$f":"IFERROR(INDEX(Atividade,SMALL(IF(Meta=$F$2,ROW(Atividade)-MIN(ROW(Atividade))+1),ROWS($B$3:B93)))&CHAR(10),\"\")","v":""},null,{"$f":"IFERROR(INDEX(Atividade,SMALL(IF(Meta=$H$2,ROW(Atividade)-MIN(ROW(Atividade))+1),ROWS($B$3:B93)))&CHAR(10),\"\")","v":""}]
[null,{"$f":"IFERROR(INDEX(Atividade,SMALL(IF(Meta=$B$2,ROW(Atividade)-MIN(ROW(Atividade))+1),ROWS($B$3:B94)))&\" \"&CHAR(10)&(INDEX(Resultado,SMALL(IF(Meta=$B$2,ROW(Resultado)-MIN(ROW(Resultado))+1),ROWS($B$3:B94))))&CHAR(10),\"\")","v":""},null,{"$f":"IFERROR(INDEX(Atividade,SMALL(IF(Meta=$D$2,ROW(Atividade)-MIN(ROW(Atividade))+1),ROWS($B$3:B94)))&CHAR(10),\"\")","v":""},null,{"$f":"IFERROR(INDEX(Atividade,SMALL(IF(Meta=$F$2,ROW(Atividade)-MIN(ROW(Atividade))+1),ROWS($B$3:B94)))&CHAR(10),\"\")","v":""},null,{"$f":"IFERROR(INDEX(Atividade,SMALL(IF(Meta=$H$2,ROW(Atividade)-MIN(ROW(Atividade))+1),ROWS($B$3:B94)))&CHAR(10),\"\")","v":""}]
[null,{"$f":"IFERROR(INDEX(Atividade,SMALL(IF(Meta=$B$2,ROW(Atividade)-MIN(ROW(Atividade))+1),ROWS($B$3:B95)))&\" \"&CHAR(10)&(INDEX(Resultado,SMALL(IF(Meta=$B$2,ROW(Resultado)-MIN(ROW(Resultado))+1),ROWS($B$3:B95))))&CHAR(10),\"\")","v":""},null,{"$f":"IFERROR(INDEX(Atividade,SMALL(IF(Meta=$D$2,ROW(Atividade)-MIN(ROW(Atividade))+1),ROWS($B$3:B95)))&CHAR(10),\"\")","v":""},null,{"$f":"IFERROR(INDEX(Atividade,SMALL(IF(Meta=$F$2,ROW(Atividade)-MIN(ROW(Atividade))+1),ROWS($B$3:B95)))&CHAR(10),\"\")","v":""},null,{"$f":"IFERROR(INDEX(Atividade,SMALL(IF(Meta=$H$2,ROW(Atividade)-MIN(ROW(Atividade))+1),ROWS($B$3:B95)))&CHAR(10),\"\")","v":""}]
[null,{"$f":"IFERROR(INDEX(Atividade,SMALL(IF(Meta=$B$2,ROW(Atividade)-MIN(ROW(Atividade))+1),ROWS($B$3:B96)))&\" \"&CHAR(10)&(INDEX(Resultado,SMALL(IF(Meta=$B$2,ROW(Resultado)-MIN(ROW(Resultado))+1),ROWS($B$3:B96))))&CHAR(10),\"\")","v":""},null,{"$f":"IFERROR(INDEX(Atividade,SMALL(IF(Meta=$D$2,ROW(Atividade)-MIN(ROW(Atividade))+1),ROWS($B$3:B96)))&CHAR(10),\"\")","v":""},null,{"$f":"IFERROR(INDEX(Atividade,SMALL(IF(Meta=$F$2,ROW(Atividade)-MIN(ROW(Atividade))+1),ROWS($B$3:B96)))&CHAR(10),\"\")","v":""},null,{"$f":"IFERROR(INDEX(Atividade,SMALL(IF(Meta=$H$2,ROW(Atividade)-MIN(ROW(Atividade))+1),ROWS($B$3:B96)))&CHAR(10),\"\")","v":""}]
[null,{"$f":"IFERROR(INDEX(Atividade,SMALL(IF(Meta=$B$2,ROW(Atividade)-MIN(ROW(Atividade))+1),ROWS($B$3:B97)))&\" \"&CHAR(10)&(INDEX(Resultado,SMALL(IF(Meta=$B$2,ROW(Resultado)-MIN(ROW(Resultado))+1),ROWS($B$3:B97))))&CHAR(10),\"\")","v":""},null,{"$f":"IFERROR(INDEX(Atividade,SMALL(IF(Meta=$D$2,ROW(Atividade)-MIN(ROW(Atividade))+1),ROWS($B$3:B97)))&CHAR(10),\"\")","v":""},null,{"$f":"IFERROR(INDEX(Atividade,SMALL(IF(Meta=$F$2,ROW(Atividade)-MIN(ROW(Atividade))+1),ROWS($B$3:B97)))&CHAR(10),\"\")","v":""},null,{"$f":"IFERROR(INDEX(Atividade,SMALL(IF(Meta=$H$2,ROW(Atividade)-MIN(ROW(Atividade))+1),ROWS($B$3:B97)))&CHAR(10),\"\")","v":""}]
[null,{"$f":"IFERROR(INDEX(Atividade,SMALL(IF(Meta=$B$2,ROW(Atividade)-MIN(ROW(Atividade))+1),ROWS($B$3:B98)))&\" \"&CHAR(10)&(INDEX(Resultado,SMALL(IF(Meta=$B$2,ROW(Resultado)-MIN(ROW(Resultado))+1),ROWS($B$3:B98))))&CHAR(10),\"\")","v":""},null,{"$f":"IFERROR(INDEX(Atividade,SMALL(IF(Meta=$D$2,ROW(Atividade)-MIN(ROW(Atividade))+1),ROWS($B$3:B98)))&CHAR(10),\"\")","v":""},null,{"$f":"IFERROR(INDEX(Atividade,SMALL(IF(Meta=$F$2,ROW(Atividade)-MIN(ROW(Atividade))+1),ROWS($B$3:B98)))&CHAR(10),\"\")","v":""},null,{"$f":"IFERROR(INDEX(Atividade,SMALL(IF(Meta=$H$2,ROW(Atividade)-MIN(ROW(Atividade))+1),ROWS($B$3:B98)))&CHAR(10),\"\")","v":""}]
[null,{"$f":"IFERROR(INDEX(Atividade,SMALL(IF(Meta=$B$2,ROW(Atividade)-MIN(ROW(Atividade))+1),ROWS($B$3:B99)))&\" \"&CHAR(10)&(INDEX(Resultado,SMALL(IF(Meta=$B$2,ROW(Resultado)-MIN(ROW(Resultado))+1),ROWS($B$3:B99))))&CHAR(10),\"\")","v":""},null,{"$f":"IFERROR(INDEX(Atividade,SMALL(IF(Meta=$D$2,ROW(Atividade)-MIN(ROW(Atividade))+1),ROWS($B$3:B99)))&CHAR(10),\"\")","v":""},null,{"$f":"IFERROR(INDEX(Atividade,SMALL(IF(Meta=$F$2,ROW(Atividade)-MIN(ROW(Atividade))+1),ROWS($B$3:B99)))&CHAR(10),\"\")","v":""},null,{"$f":"IFERROR(INDEX(Atividade,SMALL(IF(Meta=$H$2,ROW(Atividade)-MIN(ROW(Atividade))+1),ROWS($B$3:B99)))&CHAR(10),\"\")","v":""}]
[null,{"$f":"IFERROR(INDEX(Atividade,SMALL(IF(Meta=$B$2,ROW(Atividade)-MIN(ROW(Atividade))+1),ROWS($B$3:B100)))&\" \"&CHAR(10)&(INDEX(Resultado,SMALL(IF(Meta=$B$2,ROW(Resultado)-MIN(ROW(Resultado))+1),ROWS($B$3:B100))))&CHAR(10),\"\")","v":""},null,{"$f":"IFERROR(INDEX(Atividade,SMALL(IF(Meta=$D$2,ROW(Atividade)-MIN(ROW(Atividade))+1),ROWS($B$3:B100)))&CHAR(10),\"\")","v":""},null,{"$f":"IFERROR(INDEX(Atividade,SMALL(IF(Meta=$F$2,ROW(Atividade)-MIN(ROW(Atividade))+1),ROWS($B$3:B100)))&CHAR(10),\"\")","v":""},null,{"$f":"IFERROR(INDEX(Atividade,SMALL(IF(Meta=$H$2,ROW(Atividade)-MIN(ROW(Atividade))+1),ROWS($B$3:B100)))&CHAR(10),\"\")","v":""}]

{"sheet":"Informações","index":2,"n_rows":6,"n_cols":1,"rows_kept":6}
["Informações sobre este livro"]
["Guia para leitores de ecrã"]
["Existem três folhas de cálculo neste livro. \n\nDados do Mapa de Objetivos\nMapa de Objetivos Ágil\nInformações\n\nAs instruções de cada folha de cálculo estão na coluna A a partir da célula A1 de cada folha de cálculo. Estão escritas em texto oculto. Cada passo orienta-o pelas informações da respetiva linha. Cada passo subsequente continua na célula A2, A3 e assim sucessivamente, salvo indicação em contrário. Por exemplo, o texto da instrução pode indicar \"avance para a célula A6\" para o passo seguinte. \n\nO texto oculto não será impresso.\n\nPara remover estas instruções de uma folha de cálculo, elimine a coluna A.\n"]
["Informações sobre este Livro"]
["Introduza as informações sobre o marco na folha de cálculo Dados do Mapa de Objetivos.  Certifique-se de que ordena por prioridade seguido do marco para obter a vista Concluído, Atual, Curto Prazo e Futuro em prioridade descendente, com os itens com prioridade mais alta na parte superior. O Mapa de Objetivos na folha de cálculo Mapa de Objetivos Ágil é atualizado automaticamente.\n"]
["Esta é a última instrução nesta folha de cálculo."]